﻿Service,Expense type,Merchant Name,Expense Invoice Date,Total Expense
CAMPAIGNS & COMMUNICATIONS,IT Services,NATIONBUILDER,01-Apr-2020,182.90
CAMPAIGNS & COMMUNICATIONS,IT Software-Customised,WINSERVE2903093,01-Apr-2020,8.40
CAMPAIGNS & COMMUNICATIONS,IT Software-Customised,WINSERVE2902814,01-Apr-2020,19.18
CSC SENIOR MANAGEMENT,Domestic Goods-Other,CURRYS ONLINE,01-Apr-2020,828.98
CSC SENIOR MANAGEMENT,Domestic Goods-Other,Yougotagift.com LTD,01-Apr-2020,66.76
CSC SENIOR MANAGEMENT,Furniture-Domestic Furniture,WWW.IKEA.COM,01-Apr-2020,383.00
CSC SENIOR MANAGEMENT,Taxi Fares,WWW.ADDISONLEE.COM,01-Apr-2020,44.50
DEMOCRATIC SERVICES,Catering Food & Drink,ADEXA DIRECT,01-Apr-2020,"3,074.76"
DEMOCRATIC SERVICES,Domestic Goods-Other,AMZNMktplace,01-Apr-2020,28.99
EARLY HELP,Consultancy-Business,CS* TESCO STORES GC,01-Apr-2020,"1,000.00"
MH SERVICES,Legal Services-Other,HMCOURTS-SERVICE.G,01-Apr-2020,150.00
RESIDENT EXPERIENCE,Domestic Goods-Other,AMAZON.CO.UK,01-Apr-2020,6.54
CAMPAIGNS & COMMUNICATIONS,IT Services,GOOGLE,02-Apr-2020,20.70
CSC SENIOR MANAGEMENT,Accommodation,Hotel on Booking.com,02-Apr-2020,-267.30
CSC SENIOR MANAGEMENT,Domestic Goods-Other,ARGOS LTD,02-Apr-2020,29.99
CSC SENIOR MANAGEMENT,Domestic Goods-Other,Yougotagift.com LTD,02-Apr-2020,22.22
CSC SENIOR MANAGEMENT,Furniture-Domestic Furniture,WAYFAIR,02-Apr-2020,991.77
CSC SENIOR MANAGEMENT,Travel/Subsistence,OYSTER BUS AUTOLOAD,02-Apr-2020,20.00
DEMOCRATIC SERVICES,Accommodation,CASH ADVANCE FEE,02-Apr-2020,13.87
DEMOCRATIC SERVICES,Accommodation,Wix.com,02-Apr-2020,122.40
DEMOCRATIC SERVICES,Domestic Goods-Other,AMZNMktplace,02-Apr-2020,244.76
HOUSING MANAGEMENT SERVICES,Building-General,PENNY SAVERS,02-Apr-2020,354.40
BEREAVEMENT SERVICES,Cemetery & Crematorium,SAFE.CO.UK,03-Apr-2020,109.22
BUSINESS IMPROVEMENT,Conference Expenses,EB *WORKSHOPS ARE BEAU,03-Apr-2020,-150.00
BUSINESS IMPROVEMENT,IT Services,AWS EMEA,03-Apr-2020,147.80
CAMPAIGNS & COMMUNICATIONS,IT Services,NATIONBUILDER,03-Apr-2020,100.39
CSC SENIOR MANAGEMENT,Domestic Goods-Other,Yougotagift.com LTD,03-Apr-2020,89.90
CSC SENIOR MANAGEMENT,Domestic Goods-Other,ARGOS LTD,03-Apr-2020,-45.00
CSC SENIOR MANAGEMENT,Facilities-Market Research,Amazon Prime,03-Apr-2020,-7.99
CSC SENIOR MANAGEMENT,Travel/Subsistence,OYSTER AUTO-TOP UP,03-Apr-2020,20.00
DEMOCRATIC SERVICES,Healthcare-Drugs,BROCKWELL PARK PHARMACY,03-Apr-2020,"2,547.00"
HOUSING MANAGEMENT SERVICES,Building-General,PENNY SAVERS,03-Apr-2020,249.70
HOUSING MANAGEMENT SERVICES,Education-Library Books,AMZN Mktp UK,03-Apr-2020,71.76
MH SERVICES,Legal Services-Other,HMCOURTS-SERVICE.G,03-Apr-2020,225.00
PARKS & LEISURE SERVICES,Building-General,SCREWFIX DIRECT,03-Apr-2020,44.30
PENSIONS SERVICES,Financial Services,GEN REGISTER OFFICE,03-Apr-2020,231.00
PENSIONS SERVICES,Financial Services,GEN REGISTER OFFICE,03-Apr-2020,-33.00
PENSIONS SERVICES,Financial Services,GEN REGISTER OFFICE,03-Apr-2020,-11.00
CAMPAIGNS & COMMUNICATIONS,IT Services,BUZZSUMO.COM PRO,04-Apr-2020,100.22
DEMOCRATIC SERVICES,Catering Food & Drink,LA OREGANO PIZZA,04-Apr-2020,145.00
DEMOCRATIC SERVICES,Domestic Goods-Other,WWW.ALBERT-HARRISON.CO,04-Apr-2020,302.64
FAMILY SUPPORT & CHILD PROTECTION,Domestic Goods-Other,ARGOS LTD,04-Apr-2020,-90.00
BEREAVEMENT SERVICES,Catering Food & Drink,AMZNMktplace,05-Apr-2020,181.36
CSC SENIOR MANAGEMENT,Domestic Goods-Other,ARGOS LTD,05-Apr-2020,-90.00
CSC SENIOR MANAGEMENT,Travel/Subsistence,OYSTER BUS AUTOLOAD,05-Apr-2020,20.00
DEMOCRATIC SERVICES,Domestic Goods-Other,AMZNMktplace,05-Apr-2020,504.89
BEREAVEMENT SERVICES,Cemetery & Crematorium,AMZNMKTPLACE AMAZON.CO.UK,06-Apr-2020,15.98
CAMPAIGNS & COMMUNICATIONS,IT Software-Customised,WINSERVE2911277,06-Apr-2020,35.99
CSC SENIOR MANAGEMENT,Domestic Goods-Other,Yougotagift.com LTD,06-Apr-2020,56.20
CSC SENIOR MANAGEMENT,Horticultural-Other,WWW.PRESTIGEFLOWERS.CO.U,06-Apr-2020,33.29
CSC SENIOR MANAGEMENT,Taxi Fares,ADDISON LEE EXTRA,06-Apr-2020,2.40
DEMOCRATIC SERVICES,Domestic Goods-Other,WWW.ALBERT-HARRISON.CO,06-Apr-2020,340.38
DEMOCRATIC SERVICES,Financial Services,LOYD - 18 ACRE LANE,06-Apr-2020,500.00
DEMOCRATIC SERVICES,Stationery,ESEDIRECT.CO.UK,06-Apr-2020,"1,779.49"
DEMOCRATIC SERVICES,Works-Construction/Materials,MULTIMATTS LTD,06-Apr-2020,"1,231.20"
FAMILY SUPPORT & CHILD PROTECTION,Domestic Goods-Other,ARGOS LTD,06-Apr-2020,-90.00
HOUSING MANAGEMENT SERVICES,Building-General,PENNY SAVERS,06-Apr-2020,249.60
HOUSING MANAGEMENT SERVICES,Facilities-Market Research,Amazon Prime,06-Apr-2020,7.99
HOUSING OPTIONS - GF,Furniture-Domestic Furniture,WWW.IKEA.COM,06-Apr-2020,273.00
MH SERVICES,Domestic Goods-Other,ARGOS LTD,06-Apr-2020,887.96
SUBSTANCE MISUSE,Domestic Goods-Other,AMZNMktplace,06-Apr-2020,29.98
BEREAVEMENT SERVICES,Domestic Goods-Other,AMZNMktplace,07-Apr-2020,11.99
CSC SENIOR MANAGEMENT,Domestic Goods-Other,Yougotagift.com LTD,07-Apr-2020,124.05
CSC SENIOR MANAGEMENT,Domestic Goods-Other,ARGOS LTD,07-Apr-2020,-100.00
CSC SENIOR MANAGEMENT,Domestic Goods-Other,Yougotagift.com LTD,07-Apr-2020,112.79
EMERGENCY PLANNING,Building-Others,WWW.ARCO.CO.UK,07-Apr-2020,-198.75
EMERGENCY PLANNING,Domestic Goods-Other,AMZNMKTPLACE AMAZON.CO.UK,07-Apr-2020,-37.99
EMERGENCY PLANNING,Domestic Goods-Other,AMZNMKTPLACE AMAZON.CO.UK,07-Apr-2020,-27.79
HOUSING OPTIONS - GF,Domestic Goods-Other,WWW.JOHNLEWIS.COM,07-Apr-2020,77.95
HOUSING OPTIONS - GF,Furniture-Domestic Furniture,ARGOS LTD,07-Apr-2020,256.93
LAMBETH WORKING S106,Environmental-Pest Control,PAYPAL,07-Apr-2020,46.11
MH SERVICES,Domestic Goods-Other,ARGOS LTD,07-Apr-2020,458.98
BEREAVEMENT SERVICES,Cemetery & Crematorium,AMZNMktplace,08-Apr-2020,109.01
CAMPAIGNS & COMMUNICATIONS,Facilities-Design & Photography,iStock.com,08-Apr-2020,900.00
CSC SENIOR MANAGEMENT,Domestic Goods-Other,MANOMANO,08-Apr-2020,187.95
CSC SENIOR MANAGEMENT,Domestic Goods-Other,Yougotagift.com LTD,08-Apr-2020,39.07
CSC SENIOR MANAGEMENT,Travel/Subsistence,OYSTER BUS AUTOLOAD,08-Apr-2020,20.00
CSC SENIOR MANAGEMENT,Travel/Subsistence,TRAINLINE,08-Apr-2020,-58.30
DEMOCRATIC SERVICES,Financial Services,HSBC/BRIXTON RD E2,08-Apr-2020,500.00
HOUSING MANAGEMENT SERVICES,Domestic Goods-Other,AMAZON.CO.UK,08-Apr-2020,54.00
HOUSING OPTIONS - GF,Books/Publications/Resources,WHICH,08-Apr-2020,11.75
MH SERVICES,Legal Services-Other,HMCOURTS-SERVICE.G,08-Apr-2020,150.00
PARKS & LEISURE SERVICES,Building-Paint,LEYLAND SDM,08-Apr-2020,64.34
SCHOOL & EDUCATIONAL IMPROVEMENT SERVICE,Facilities-Printing,Amazon.co.uk,08-Apr-2020,55.67
CSC SENIOR MANAGEMENT,Catering Food & Drink,MARKS&SPENCER PLC,09-Apr-2020,95.00
CSC SENIOR MANAGEMENT,Domestic Goods-Other,Yougotagift.com LTD,09-Apr-2020,166.45
CSC SENIOR MANAGEMENT,Domestic Goods-Other,ARGOS LTD,09-Apr-2020,327.87
CSC SENIOR MANAGEMENT,Domestic Goods-Other,Yougotagift.com LTD,09-Apr-2020,133.20
CSC SENIOR MANAGEMENT,Financial Services,LOYD - 18 ACRE LANE,09-Apr-2020,110.00
CSC SENIOR MANAGEMENT,Furniture-Soft Furnishings,BLINDS 2 GO LTD,09-Apr-2020,120.93
CSC SENIOR MANAGEMENT,Travel/Subsistence,OYSTER BUS AUTOLOAD,09-Apr-2020,20.00
CSC SENIOR MANAGEMENT,Travel/Subsistence,OYSTER BUS AUTOLOAD,09-Apr-2020,20.00
DEMOCRATIC SERVICES,Accommodation,CASH ADVANCE FEE,09-Apr-2020,14.75
DEMOCRATIC SERVICES,Banquet & Catering,BFS GROUP,09-Apr-2020,"2,905.93"
DEMOCRATIC SERVICES,Domestic Goods-Other,WWW.ALBERT-HARRISON.CO,09-Apr-2020,"1,593.53"
DEMOCRATIC SERVICES,Facilities-Market Research,ZOOM.GBP,09-Apr-2020,14.39
DEMOCRATIC SERVICES,Stationery,VIKING UK,09-Apr-2020,17.86
EARLY HELP,Domestic Goods-Other,ARGOS LTD,09-Apr-2020,66.94
HOUSING MANAGEMENT SERVICES,Facilities-Printing,CENTRAL SOURCE LTD,09-Apr-2020,233.50
PARKS & LEISURE SERVICES,Building-General,SCREWFIX DIRECT,09-Apr-2020,16.98
PARKS & LEISURE SERVICES,Consultancy-Business,G24LTD PARKING SOL,09-Apr-2020,60.00
SCHOOL & EDUCATIONAL IMPROVEMENT SERVICE,Facilities-Printing,Amazon.co.uk,09-Apr-2020,"1,050.00"
SHELTERED HOUSING,Domestic Goods-Other,AMZNMktplace,09-Apr-2020,182.70
SUBSTANCE MISUSE,Domestic Goods-Other,AMZ*Foktech direct,09-Apr-2020,-12.00
SUBSTANCE MISUSE,Domestic Goods-Other,AMZ*UKEASYY,09-Apr-2020,-13.99
CSC SENIOR MANAGEMENT,Accommodation,CASH ADVANCE FEE,10-Apr-2020,3.25
CSC SENIOR MANAGEMENT,Domestic Goods-Other,Yougotagift.com LTD,10-Apr-2020,77.32
CSC SENIOR MANAGEMENT,Education-Other,TUTORFUL* L-YAMKWO6B,10-Apr-2020,60.00
CSC SENIOR MANAGEMENT,Travel/Subsistence,OYSTER BUS AUTOLOAD,10-Apr-2020,20.00
DEMOCRATIC SERVICES,Catering Food & Drink,PAYPAL,10-Apr-2020,"1,056.83"
DEMOCRATIC SERVICES,Financial Services,HSBC/BRIXTON RD E1,10-Apr-2020,500.00
EARLY HELP,Taxi Fares,UBER TRIP HELP.UBER.COM,10-Apr-2020,17.29
EARLY HELP,Taxi Fares,UBER TRIP HELP.UBER.COM,10-Apr-2020,15.59
FAMILY SUPPORT & CHILD PROTECTION,Domestic Goods-Other,ARGOS LTD,10-Apr-2020,-449.98
CSC SENIOR MANAGEMENT,Domestic Goods-Other,AMZNMktplace,11-Apr-2020,99.98
CSC SENIOR MANAGEMENT,Education-Other,TUTORFUL* L-X4P5LALX,11-Apr-2020,60.00
CSC SENIOR MANAGEMENT,Facilities-Market Research,Amazon Prime,11-Apr-2020,7.99
CSC SENIOR MANAGEMENT,Travel/Subsistence,OYSTER BUS AUTOLOAD,11-Apr-2020,20.00
DEMOCRATIC SERVICES,Catering Food & Drink,UberUK_EATS UBER EATS HEL,11-Apr-2020,136.80
DEMOCRATIC SERVICES,Domestic Goods-Other,WWW.ALBERT-HARRISON.CO,11-Apr-2020,202.86
EARLY HELP,Taxi Fares,UBER TRIP HELP.UBER.COM,11-Apr-2020,17.37
EARLY HELP,Taxi Fares,UBER TRIP HELP.UBER.COM,11-Apr-2020,17.41
SPECIALIST YOUTH,Public Transport,OYSTER BUS AUTOLOAD,11-Apr-2020,20.00
CSC SENIOR MANAGEMENT,Travel/Subsistence,OYSTER BUS AUTOLOAD,12-Apr-2020,20.00
HOUSING MANAGEMENT SERVICES,Domestic Goods-Other,AMZNMktplace,13-Apr-2020,169.99
PUBLIC PROTECTION & REGULATORY SERVICES,Accommodation,CASH ADVANCE FEE,13-Apr-2020,14.75
SHELTERED HOUSING,Domestic Goods-Other,AMZNMKTPLACE AMAZON.CO.UK,13-Apr-2020,172.28
BEREAVEMENT SERVICES,Building-Timber,TP MITCHAM,14-Apr-2020,193.80
BEREAVEMENT SERVICES,Building-Timber,TP MITCHAM,14-Apr-2020,195.00
BEREAVEMENT SERVICES,Building-Timber,TP MITCHAM,14-Apr-2020,176.02
CSC SENIOR MANAGEMENT,Domestic Goods-Other,Yougotagift.com LTD,14-Apr-2020,241.51
CSC SENIOR MANAGEMENT,Domestic Goods-Other,Yougotagift.com LTD,14-Apr-2020,32.93
CSC SENIOR MANAGEMENT,Domestic Goods-Other,Yougotagift.com LTD,14-Apr-2020,54.89
DEMOCRATIC SERVICES,Banquet & Catering,BFS GROUP,14-Apr-2020,"4,483.90"
DEMOCRATIC SERVICES,Catering Food & Drink,ADEXA DIRECT,14-Apr-2020,"1,424.40"
DEMOCRATIC SERVICES,Facilities-Market Research,WWW.NISBETS.COM,14-Apr-2020,93.43
PUBLIC HEALTH - ADULTS,Travel/Subsistence,AVANTI WEST COAST,14-Apr-2020,-73.00
RESIDENT ENGAGEMENT,IT Software,ZOOM.GBP,14-Apr-2020,14.39
SCHOOL & EDUCATIONAL IMPROVEMENT SERVICE,Domestic Goods-Other,AMAZON.CO.UK,14-Apr-2020,"1,000.00"
SPECIALIST YOUTH,Public Transport,OYSTER BUS AUTOLOAD,14-Apr-2020,20.00
CSC SENIOR MANAGEMENT,Facilities-Printing,Amazon.co.uk,15-Apr-2020,104.47
CSC SENIOR MANAGEMENT,Travel/Subsistence,AUTO TOP-UP ARREARS,15-Apr-2020,20.00
CSC SENIOR MANAGEMENT,Travel/Subsistence,OYSTER BUS AUTOLOAD,15-Apr-2020,20.00
CSC SENIOR MANAGEMENT,Travel/Subsistence,OYSTER ONLINE,15-Apr-2020,28.80
DEMOCRATIC SERVICES,Catering Food & Drink,ADEXA DIRECT,15-Apr-2020,"1,287.84"
EARLY HELP,Taxi Fares,UBER TRIP HELP.UBER.COM,15-Apr-2020,19.75
EARLY HELP,Taxi Fares,UBER TRIP HELP.UBER.COM,15-Apr-2020,12.18
EARLY HELP,Taxi Fares,UBER TRIP HELP.UBER.COM,15-Apr-2020,12.40
EARLY HELP,Taxi Fares,UBER TRIP HELP.UBER.COM,15-Apr-2020,6.00
EARLY HELP,Taxi Fares,UBER TRIP HELP.UBER.COM,15-Apr-2020,18.62
HOUSING MANAGEMENT SERVICES,Building-General,PENNY SAVERS,15-Apr-2020,21.96
HOUSING MANAGEMENT SERVICES,Domestic Goods-Other,AMZNMktplace,15-Apr-2020,99.96
HOUSING MANAGEMENT SERVICES,Domestic Goods-Other,AMAZON.CO.UK AMAZON.CO.UK,15-Apr-2020,-54.00
MH SERVICES,Legal Services-Other,HMCOURTS-SERVICE.G,15-Apr-2020,75.00
PARKS & LEISURE SERVICES,Building-General,LANDSCAPE SUPPLY COMPA,15-Apr-2020,153.00
PARKS & LEISURE SERVICES,Building-General,SCREWFIX DIRECT,15-Apr-2020,193.98
SCHOOL & EDUCATIONAL IMPROVEMENT SERVICE,Consultancy-Business,AWEBER COMMUNICATIONS,15-Apr-2020,8.30
SCHOOL & EDUCATIONAL IMPROVEMENT SERVICE,Facilities-Printing,CIRCLE OF SECURITY INT,15-Apr-2020,827.90
SCHOOL & EDUCATIONAL IMPROVEMENT SERVICE,Facilities-Printing,Amazon.co.uk,15-Apr-2020,"1,000.00"
CSC SENIOR MANAGEMENT,Domestic Goods-Other,Yougotagift.com LTD,16-Apr-2020,199.03
CSC SENIOR MANAGEMENT,Domestic Goods-Other,Yougotagift.com LTD,16-Apr-2020,143.72
CSC SENIOR MANAGEMENT,Facilities-Printing,Amazon.co.uk,16-Apr-2020,99.00
CSC SENIOR MANAGEMENT,Financial Services,GEN REGISTER OFFICE,16-Apr-2020,35.00
CSC SENIOR MANAGEMENT,Travel/Subsistence,OYSTER BUS AUTOLOAD,16-Apr-2020,20.00
DEMOCRATIC SERVICES,Banquet & Catering,BFS GROUP,16-Apr-2020,"6,059.98"
DEMOCRATIC SERVICES,Catering Food & Drink,PAYPAL,16-Apr-2020,"1,214.59"
DEMOCRATIC SERVICES,IT Hardware,SHS HANDLING SOLUTIONS,16-Apr-2020,785.52
EARLY HELP,Taxi Fares,UBER TRIP HELP.UBER.COM,16-Apr-2020,19.25
EARLY HELP,Taxi Fares,UBER TRIP HELP.UBER.COM,16-Apr-2020,18.14
MH SERVICES,Accommodation,PASHA HOTEL,16-Apr-2020,300.00
OT SERVICES,Domestic Goods-Other,ARGOS LTD,16-Apr-2020,194.93
OT SERVICES,Domestic Goods-Other,ARGOS LTD,16-Apr-2020,245.47
OT SERVICES,Domestic Goods-Other,ARGOS LTD,16-Apr-2020,135.00
OT SERVICES,Domestic Goods-Other,ARGOS LTD,16-Apr-2020,240.00
OT SERVICES,Domestic Goods-Other,ARGOS LTD,16-Apr-2020,168.00
PARKS & LEISURE SERVICES,Professional & Advisory Services,WWW.ICFM.COM,16-Apr-2020,60.00
CAMPAIGNS & COMMUNICATIONS,Facilities-Design & Photography,CANVA* 02664-0954358,17-Apr-2020,10.75
CSC SENIOR MANAGEMENT,Domestic Goods-Other,ARGOS LTD,17-Apr-2020,334.95
CSC SENIOR MANAGEMENT,Domestic Goods-Other,ARGOS LTD,17-Apr-2020,33.94
CSC SENIOR MANAGEMENT,Domestic Goods-Other,Yougotagift.com LTD,17-Apr-2020,33.17
CSC SENIOR MANAGEMENT,Domestic Goods-Other,Yougotagift.com LTD,17-Apr-2020,33.17
CSC SENIOR MANAGEMENT,Education-Other,TUTORFUL* L-B3GO5P4L,17-Apr-2020,60.00
CSC SENIOR MANAGEMENT,Facilities-Printing,Amazon.co.uk,17-Apr-2020,49.99
CSC SENIOR MANAGEMENT,Facilities-Printing,Amazon.co.uk,17-Apr-2020,49.99
CSC SENIOR MANAGEMENT,Horticultural-Seeds & Plants,CLAPHAM FLOWERS,17-Apr-2020,41.00
CSC SENIOR MANAGEMENT,Travel/Subsistence,OYSTER BUS AUTOLOAD,17-Apr-2020,20.00
CSC SENIOR MANAGEMENT,Travel/Subsistence,thetrainline.com,17-Apr-2020,319.69
DEMOCRATIC SERVICES,Domestic Goods-Other,WWW.ALBERT-HARRISON.CO,17-Apr-2020,"1,149.12"
DEMOCRATIC SERVICES,Facilities-Printing,Amazon.co.uk,17-Apr-2020,22.18
EARLY HELP,Taxi Fares,UBER TRIP HELP.UBER.COM,17-Apr-2020,13.52
EARLY HELP,Taxi Fares,UBER TRIP HELP.UBER.COM,17-Apr-2020,20.30
EARLY HELP,Taxi Fares,UBER TRIP HELP.UBER.COM,17-Apr-2020,14.77
EARLY HELP,Taxi Fares,UBER TRIP HELP.UBER.COM,17-Apr-2020,5.42
EARLY HELP,Taxi Fares,UBER   *TRIP,17-Apr-2020,18.31
LEGAL SERVICES,Stationery,WWW.DISCOUNTSTICKERPRI,17-Apr-2020,50.15
OT SERVICES,Domestic Goods-Other,ARGOS LTD,17-Apr-2020,990.92
OT SERVICES,Domestic Goods-Other,ARGOS LTD,17-Apr-2020,875.97
OT SERVICES,Domestic Goods-Other,ARGOS LTD,17-Apr-2020,90.00
OT SERVICES,Domestic Goods-Other,ARGOS LTD,17-Apr-2020,998.89
OT SERVICES,Domestic Goods-Other,ARGOS LTD,17-Apr-2020,43.99
OT SERVICES,Domestic Goods-Other,ARGOS LTD,17-Apr-2020,249.95
PARKING OPERATIONS,Stationery,WWW.POSTOFFICESHOP.CO.UK,17-Apr-2020,97.96
RESIDENT ENGAGEMENT,IT Consumables,ARGOS LTD,17-Apr-2020,69.93
SCHOOL & EDUCATIONAL IMPROVEMENT SERVICE,Facilities-Advertising,FACEBK FA2K8SECE2,17-Apr-2020,622.33
CSC SENIOR MANAGEMENT,Education-Other,TUTORFUL* L-YAGW5KMR,18-Apr-2020,60.00
CSC SENIOR MANAGEMENT,Travel/Subsistence,OYSTER AUTO TOPUP,18-Apr-2020,20.00
CSC SENIOR MANAGEMENT,Domestic Goods-Other,AMAZON.CO.UK,19-Apr-2020,104.47
CSC SENIOR MANAGEMENT,Facilities-Printing,Amazon.co.uk,19-Apr-2020,299.94
SCHOOL & EDUCATIONAL IMPROVEMENT SERVICE,Facilities-Advertising,GOOGLE  ADS3485321156,19-Apr-2020,130.49
CAMPAIGNS & COMMUNICATIONS,IT Software,ADOBE CREATIVE CLOUD,20-Apr-2020,212.40
CSC SENIOR MANAGEMENT,Domestic Goods-Other,AMZNMktplace,20-Apr-2020,24.90
CSC SENIOR MANAGEMENT,Furniture-Soft Furnishings,www.247blinds.co.uk,20-Apr-2020,122.07
CSC SENIOR MANAGEMENT,Taxi Fares,IZ *AIR TAXIS SHEF,20-Apr-2020,340.00
CSC SENIOR MANAGEMENT,Travel/Subsistence,OYSTER BUS AUTOLOAD,20-Apr-2020,40.00
DEMOCRATIC SERVICES,Catering Food & Drink,CASA SIBILLA,20-Apr-2020,840.00
DEMOCRATIC SERVICES,Financial Services,HSBC/BRIXTON RD E2,20-Apr-2020,500.00
ENVIRONMENTAL SERVICES,Building-General,SCREWFIX DIRECT,20-Apr-2020,149.98
MH SERVICES,Consultancy-Business,POSTURITE LTD,20-Apr-2020,112.64
MH SERVICES,Legal Services-Other,HMCOURTS-SERVICE.G,20-Apr-2020,150.00
PARKS & LEISURE SERVICES,Building-Tools,KEYTRAK LOCK &,20-Apr-2020,110.34
PARKS & LEISURE SERVICES,Education-Library Books,NHBS LTD,20-Apr-2020,202.44
SCHOOL & EDUCATIONAL IMPROVEMENT SERVICE,Education-Toys,AMAZON.CO.UK,20-Apr-2020,"2,500.00"
SCHOOL & EDUCATIONAL IMPROVEMENT SERVICE,Education-Toys,Amazon.co.uk,20-Apr-2020,"1,000.00"
CSC SENIOR MANAGEMENT,Catering Food & Drink,MARKS&SPENCER PLC,21-Apr-2020,35.00
CSC SENIOR MANAGEMENT,Domestic Goods-Other,Yougotagift.com LTD,21-Apr-2020,212.81
CSC SENIOR MANAGEMENT,Domestic Goods-Other,Yougotagift.com LTD,21-Apr-2020,112.00
CSC SENIOR MANAGEMENT,Domestic Goods-Other,Yougotagift.com LTD,21-Apr-2020,33.60
CSC SENIOR MANAGEMENT,Financial Services,GEN REGISTER OFFICE,21-Apr-2020,-63.00
CSC SENIOR MANAGEMENT,Financial Services,GEN REGISTER OFFICE,21-Apr-2020,152.00
DEMOCRATIC SERVICES,Accommodation,CASH ADVANCE FEE,21-Apr-2020,14.75
DEMOCRATIC SERVICES,Catering Food & Drink,IZ *PLANE TREE HOSPITALIT,21-Apr-2020,133.40
EVENTS & FILMING,Facilities-Advertising,PAYPAL,21-Apr-2020,8.36
OT SERVICES,Domestic Goods-Other,ARGOS LTD,21-Apr-2020,12.00
PARKS & LEISURE SERVICES,Consultancy-Business,WWW.PLANNINGPORTAL.CO.,21-Apr-2020,237.00
PARKS & LEISURE SERVICES,Consultancy-Business,WWW.PLANNINGPORTAL.CO.,21-Apr-2020,250.00
SCHOOL & EDUCATIONAL IMPROVEMENT SERVICE,Education-Toys,AMAZON.CO.UK,21-Apr-2020,"1,500.00"
SCHOOL & EDUCATIONAL IMPROVEMENT SERVICE,Education-Toys,Amazon.co.uk,21-Apr-2020,"1,500.00"
SCHOOL & EDUCATIONAL IMPROVEMENT SERVICE,Education-Toys,Amazon.co.uk,21-Apr-2020,"1,500.00"
SCHOOL & EDUCATIONAL IMPROVEMENT SERVICE,Facilities-Printing,Amazon.co.uk,21-Apr-2020,"3,000.00"
BEREAVEMENT SERVICES,Building-Timber,TP MITCHAM,22-Apr-2020,384.00
CSC SENIOR MANAGEMENT,Domestic Goods-Other,ARGOS LTD,22-Apr-2020,259.99
CSC SENIOR MANAGEMENT,Financial Services,ROYAL BANK UK /,22-Apr-2020,60.00
DEMOCRATIC SERVICES,Catering Food & Drink,PAYPAL,22-Apr-2020,"1,805.95"
DEMOCRATIC SERVICES,Catering Food & Drink,IZ *PLANE TREE HOS,22-Apr-2020,168.48
DEMOCRATIC SERVICES,Domestic Goods-Other,WWW.ALBERT-HARRISON.CO,22-Apr-2020,374.82
EARLY HELP,Domestic Goods-Other,ARGOS LTD,22-Apr-2020,262.95
EARLY HELP,Furniture-Domestic Furniture,WWW.IKEA.COM,22-Apr-2020,754.00
MH SERVICES,Accommodation,PASHA HOTEL,22-Apr-2020,455.00
MH SERVICES,Legal Services-Other,HMCOURTS-SERVICE.G,22-Apr-2020,150.00
PARKS & LEISURE SERVICES,Building-General,SCREWFIX DIRECT,22-Apr-2020,29.99
PARKS & LEISURE SERVICES,Building-General,SCREWFIX DIRECT,22-Apr-2020,104.98
SCHOOL & EDUCATIONAL IMPROVEMENT SERVICE,Education-Toys,Amazon.co.uk,22-Apr-2020,"1,000.00"
CSC SENIOR MANAGEMENT,Accommodation,CASH ADVANCE FEE,23-Apr-2020,2.95
CSC SENIOR MANAGEMENT,Domestic Goods-Other,Yougotagift.com LTD,23-Apr-2020,33.44
CSC SENIOR MANAGEMENT,Domestic Goods-Other,ARGOS LTD,23-Apr-2020,273.95
CSC SENIOR MANAGEMENT,Facilities-Market Research,Amazon Prime,23-Apr-2020,-7.99
DEMOCRATIC SERVICES,Banquet & Catering,BFS GROUP,23-Apr-2020,"7,065.62"
DEMOCRATIC SERVICES,Building-Others,INFO@TAOTECH.CO.UK,23-Apr-2020,27.94
DEMOCRATIC SERVICES,Domestic Goods-Other,AMZNMKTPLACE AMAZON.CO.UK,23-Apr-2020,16.98
DEMOCRATIC SERVICES,IT Hardware,SHS HANDLING SOLUTIONS,23-Apr-2020,"1,963.20"
DEMOCRATIC SERVICES,Stationery,STAPLES.CO.UK,23-Apr-2020,"9,216.00"
PARKS & LEISURE SERVICES,Domestic Goods-Other,AMZNMKTPLACE AMAZON.CO.UK,23-Apr-2020,183.96
SCHOOL & EDUCATIONAL IMPROVEMENT SERVICE,Education-Toys,Amazon.co.uk,23-Apr-2020,750.00
SCHOOL & EDUCATIONAL IMPROVEMENT SERVICE,Education-Toys,AMAZON.CO.UK,23-Apr-2020,"1,000.00"
BEREAVEMENT SERVICES,Domestic Goods-Other,AMAZON.CO.UK,26-Apr-2020,6.50
BEREAVEMENT SERVICES,Domestic Goods-Other,AMAZON.CO.UK,26-Apr-2020,14.33
BEREAVEMENT SERVICES,Domestic Goods-Other,AMZNMKTPLACE AMAZON.CO.UK,26-Apr-2020,11.99
CSC SENIOR MANAGEMENT,Facilities-Market Research,Amazon Prime,27-Apr-2020,7.99
CSC SENIOR MANAGEMENT,Financial Services,BCP COUNCIL,27-Apr-2020,22.00
CSC SENIOR MANAGEMENT,Furniture-Domestic Furniture,BEDWORLD,27-Apr-2020,224.87
DEMOCRATIC SERVICES,Banquet & Catering,BFS GROUP,27-Apr-2020,-153.35
DEMOCRATIC SERVICES,Catering Food & Drink,CASA SIBILLA,27-Apr-2020,553.00
DEMOCRATIC SERVICES,Domestic Goods-Other,WWW.ALBERT-HARRISON.CO,27-Apr-2020,"1,211.88"
DEMOCRATIC SERVICES,Stationery,ESE DIRECT LIMITED,27-Apr-2020,48.00
MH SERVICES,Legal Services-Other,HMCOURTS-SERVICE.G,27-Apr-2020,75.00
PARKS & LEISURE SERVICES,Building-Paint,LEYLAND SDM,27-Apr-2020,119.88
PARKS & LEISURE SERVICES,Vehicle Parts,STOCKWELL MOTOR ACCES,27-Apr-2020,155.96
PARKS & LEISURE SERVICES,Works-Construction/Materials,THE TRADE HUB,27-Apr-2020,52.95
CSC SENIOR MANAGEMENT,Domestic Goods-Other,ARGOS LTD,28-Apr-2020,-259.99
CSC SENIOR MANAGEMENT,Domestic Goods-Other,WWW.JOHNLEWIS.COM,28-Apr-2020,246.94
DEMOCRATIC SERVICES,Building-Others,PALLET TRUCK WAREHOUSE,28-Apr-2020,454.80
DEMOCRATIC SERVICES,Domestic Goods-Other,WWW.ALBERT-HARRISON.CO,28-Apr-2020,293.40
DEMOCRATIC SERVICES,IT Software,ETI LTD,28-Apr-2020,54.00
EARLY HELP,Taxi Fares,UBER   *TRIP,28-Apr-2020,12.12
EARLY HELP,Taxi Fares,UBER TRIP HELP.UBER.COM,28-Apr-2020,13.74
EVENTS & FILMING,Consultancy-Business,BLS*MONDAY.COM,28-Apr-2020,223.20
EVENTS & FILMING,Professional & Advisory Services,ALLSEATED SUBSCRIPTION,28-Apr-2020,73.88
MH SERVICES,Legal Services-Other,HMCOURTS-SERVICE.G,28-Apr-2020,150.00
RESIDENT ENGAGEMENT,IT Consumables,ARGOS LTD,28-Apr-2020,38.94
CSC SENIOR MANAGEMENT,Domestic Goods-Other,AMAZON.CO.UK,29-Apr-2020,54.48
CAMPAIGNS & COMMUNICATIONS,IT Services,WINSERVE2947733,30-Apr-2020,11.99
CSC SENIOR MANAGEMENT,Domestic Goods-Other,Yougotagift.com LTD,30-Apr-2020,44.17
CSC SENIOR MANAGEMENT,Domestic Goods-Other,Yougotagift.com LTD,30-Apr-2020,22.08
CSC SENIOR MANAGEMENT,Facilities-Printing,Amazon.co.uk,30-Apr-2020,49.99
CSC SENIOR MANAGEMENT,Furniture-Domestic Furniture,BRANDALLEY UK LTD,30-Apr-2020,159.95
DEMOCRATIC SERVICES,Building-Others,PALLET TRUCK WAREHOUSE,30-Apr-2020,454.80
MH SERVICES,Consultancy-Business,POSTURITE LTD,30-Apr-2020,67.52
PARKS & LEISURE SERVICES,Building-General,SCREWFIX DIRECT,30-Apr-2020,16.77
PARKS & LEISURE SERVICES,Domestic Goods-Other,AMZNMKTPLACE AMAZON.CO.UK,30-Apr-2020,139.99
SCHOOL & EDUCATIONAL IMPROVEMENT SERVICE,Education-Toys,Amazon.co.uk,30-Apr-2020,10.00
CAMPAIGNS & COMMUNICATIONS,IT Services,NATIONBUILDER,01-May-2020,180.65
CSC SENIOR MANAGEMENT,Domestic Goods-Other,WWW.JOHNLEWIS.COM,01-May-2020,129.93
CSC SENIOR MANAGEMENT,Domestic Goods-Other,AMZNMktplace,01-May-2020,35.98
CSC SENIOR MANAGEMENT,Domestic Goods-Other,Yougotagift.com LTD,01-May-2020,32.96
CSC SENIOR MANAGEMENT,Domestic Goods-Other,MANOMANO,01-May-2020,-187.95
CSC SENIOR MANAGEMENT,Financial Services,SANTANDER PLC (UK),01-May-2020,60.00
CSC SENIOR MANAGEMENT,Travel/Subsistence,OYSTER AUTO TOPUP,01-May-2020,20.00
DEMOCRATIC SERVICES,Banquet & Catering,BFS GROUP,01-May-2020,"8,837.19"
DEMOCRATIC SERVICES,Consultancy-Business,EB *ONLINE TRAINING AN,01-May-2020,90.00
DEMOCRATIC SERVICES,Domestic Goods-Other,WWW.ALBERT-HARRISON.CO,01-May-2020,"1,618.22"
EMERGENCY PLANNING,Catering Food & Drink,TESCO STORE 2143,01-May-2020,68.71
PARKS & LEISURE SERVICES,Horticultural-Other,GREENSHIELDS JCB LTD,01-May-2020,28.54
SCHOOL & EDUCATIONAL IMPROVEMENT SERVICE,Education-Toys,Amazon.co.uk,01-May-2020,50.00
SHELTERED HOUSING,Domestic Goods-Other,AMZNMKTPLACE AMAZON.CO.UK,01-May-2020,250.74
BUSINESS IMPROVEMENT,IT Services,AWS EMEA,02-May-2020,142.88
CAMPAIGNS & COMMUNICATIONS,IT Services,GOOGLE,02-May-2020,20.71
CSC SENIOR MANAGEMENT,Facilities-Printing,Amazon.co.uk,02-May-2020,49.99
DEMOCRATIC SERVICES,Stationery,STAPLES.CO.UK,02-May-2020,"8,424.00"
EMERGENCY PLANNING,Catering Food & Drink,TESCO STORE 2143,02-May-2020,184.46
EMERGENCY PLANNING,Catering Food & Drink,SAINSBURYS S/MKTS,02-May-2020,120.25
CAMPAIGNS & COMMUNICATIONS,IT Services,NATIONBUILDER,03-May-2020,98.15
CSC SENIOR MANAGEMENT,Travel/Subsistence,OYSTER AUTO TOPUP,03-May-2020,20.00
CSC SENIOR MANAGEMENT,Travel/Subsistence,thetrainline.com,03-May-2020,-14.30
CSC SENIOR MANAGEMENT,Travel/Subsistence,OYSTER AUTO TOPUP,03-May-2020,20.00
CSC SENIOR MANAGEMENT,Travel/Subsistence,OYSTER AUTO TOPUP,03-May-2020,20.00
CSC SENIOR MANAGEMENT,Travel/Subsistence,OYSTER AUTO TOPUP,03-May-2020,20.00
CAMPAIGNS & COMMUNICATIONS,IT Services,BUZZSUMO.COM PRO,04-May-2020,98.61
CSC SENIOR MANAGEMENT,Accommodation,CASH ADVANCE FEE,04-May-2020,2.95
CSC SENIOR MANAGEMENT,Domestic Goods-Other,WWW.JOHNLEWIS.COM,04-May-2020,457.89
CSC SENIOR MANAGEMENT,Domestic Goods-Other,ARGOS LTD,04-May-2020,73.94
DEMOCRATIC SERVICES,Catering Food & Drink,CASA SIBILLA,04-May-2020,840.00
DEMOCRATIC SERVICES,Domestic Goods-Other,AMZNMKTPLACE AMAZON.CO.UK,04-May-2020,52.31
DEMOCRATIC SERVICES,IT Software,ETI LTD,04-May-2020,24.96
LIBRARIES & ARCHIVES,Facilities-Market Research,ZOOM.GBP,04-May-2020,36.80
MH SERVICES,Legal Services-Other,HMCOURTS-SERVICE.G,04-May-2020,150.00
PARKS & LEISURE SERVICES,Building-Timber,WICKES BUILDING,04-May-2020,177.76
PUBLIC HEALTH - ADULTS,Education-Other,KCL FINANCE ONLINE,04-May-2020,500.00
BUSINESS IMPROVEMENT,Books/Publications/Resources,THE MJ/HEMMING GROUP L,05-May-2020,140.00
CSC SENIOR MANAGEMENT,Domestic Goods-Other,Yougotagift.com LTD,05-May-2020,120.42
CSC SENIOR MANAGEMENT,Horticultural-Seeds & Plants,CLAPHAM FLOWERS,05-May-2020,40.00
DEMOCRATIC SERVICES,Banquet & Catering,BFS GROUP,05-May-2020,-49.61
EMERGENCY PLANNING,Catering Food & Drink,TESCO STORE 2143,05-May-2020,63.98
HOUSING MANAGEMENT SERVICES,Financial Services,LAMBETH INTERNET PAYM,05-May-2020,11.00
PARKS & LEISURE SERVICES,Vehicle Parts,STOCKWELL MOTOR ACCES,05-May-2020,107.32
CSC SENIOR MANAGEMENT,Domestic Goods-Other,Yougotagift.com LTD,06-May-2020,193.33
CSC SENIOR MANAGEMENT,Domestic Goods-Other,AMZNMKTPLACE AMAZON.CO.UK,06-May-2020,129.94
CSC SENIOR MANAGEMENT,Domestic Goods-Other,ARGOS LTD,06-May-2020,53.90
CSC SENIOR MANAGEMENT,Financial Services,ROYAL BANK UK /,06-May-2020,160.00
DEMOCRATIC SERVICES,Banquet & Catering,BFS GROUP,06-May-2020,"1,141.03"
DEMOCRATIC SERVICES,Stationery,STAPLES.CO.UK,06-May-2020,347.88
EMERGENCY PLANNING,Catering Food & Drink,TESCO STORE 2143,06-May-2020,78.38
HOUSING MANAGEMENT SERVICES,Domestic Goods-Other,AMZ*VAN DIRECT,06-May-2020,-169.99
HOUSING MANAGEMENT SERVICES,Facilities-Market Research,Amazon Prime,06-May-2020,7.99
MH SERVICES,Legal Services-Other,HMCOURTS-SERVICE.G,06-May-2020,150.00
SCHOOL & EDUCATIONAL IMPROVEMENT SERVICE,Education-Other,AMAZON.CO.UK,06-May-2020,120.00
SCHOOL & EDUCATIONAL IMPROVEMENT SERVICE,Education-Toys,AMAZON PRIME,06-May-2020,7.99
BUSINESS IMPROVEMENT,Books/Publications/Resources,ECONOMIST SUBSCRIPTION,07-May-2020,215.00
BUSINESS IMPROVEMENT,Books/Publications/Resources,DENNIS TLD,07-May-2020,127.49
CSC SENIOR MANAGEMENT,Accommodation,CASH ADVANCE FEE,07-May-2020,4.72
CSC SENIOR MANAGEMENT,Domestic Goods-Other,ARGOS LTD,07-May-2020,162.95
CSC SENIOR MANAGEMENT,Domestic Goods-Other,ARGOS LTD,07-May-2020,127.84
CSC SENIOR MANAGEMENT,Domestic Goods-Other,Yougotagift.com LTD,07-May-2020,249.65
CSC SENIOR MANAGEMENT,Domestic Goods-Other,Yougotagift.com LTD,07-May-2020,147.32
CSC SENIOR MANAGEMENT,Travel/Subsistence,OYSTER AUTO TOPUP,07-May-2020,20.00
DEMOCRATIC SERVICES,Domestic Goods-Other,WWW.ALBERT-HARRISON.CO,07-May-2020,"2,399.30"
EARLY HELP,Furniture-Domestic Furniture,HAPPY BEDS,07-May-2020,590.97
EMERGENCY PLANNING,Catering Food & Drink,TESCO STORE 2143,07-May-2020,193.76
CSC SENIOR MANAGEMENT,Domestic Goods-Other,AMZNMktplace,08-May-2020,64.99
CSC SENIOR MANAGEMENT,Domestic Goods-Other,AMZNMKTPLACE AMAZON.CO.UK,08-May-2020,56.99
CSC SENIOR MANAGEMENT,Facilities-Printing,Amazon.co.uk,08-May-2020,49.99
DEMOCRATIC SERVICES,Catering Food & Drink,SAINSBURY'S SMKT,08-May-2020,14.00
HOUSING OPTIONS - GF,Books/Publications/Resources,WHICH,08-May-2020,11.75
DEMOCRATIC SERVICES,Professional & Advisory Services,PAYPAL,09-May-2020,88.74
EMERGENCY PLANNING,Catering Food & Drink,TESCO STORE 2143,09-May-2020,140.72
EVENTS & FILMING,Facilities-Market Research,Amazon Prime,09-May-2020,79.00
CSC SENIOR MANAGEMENT,Domestic Goods-Other,AMZNMKTPLACE AMAZON.CO.UK,10-May-2020,138.47
CSC SENIOR MANAGEMENT,Travel/Subsistence,OYSTER AUTO TOPUP,10-May-2020,20.00
PARKS & LEISURE SERVICES,Domestic Goods-Other,AMZNMktplace,10-May-2020,50.82
SCHOOL & EDUCATIONAL IMPROVEMENT SERVICE,Facilities-Advertising,FACEBK AA8N6TWBE2,10-May-2020,700.00
BEREAVEMENT SERVICES,Catering Food & Drink,AMZNMKTPLACE AMAZON.CO.UK,11-May-2020,69.13
BEREAVEMENT SERVICES,Domestic Goods-Other,AMZNMktplace,11-May-2020,14.99
CSC SENIOR MANAGEMENT,Accommodation,BARBARA MUSETTI,11-May-2020,"1,850.00"
CSC SENIOR MANAGEMENT,Domestic Goods-Other,CHALLENGETROPHIES CO UK,11-May-2020,222.18
CSC SENIOR MANAGEMENT,Domestic Goods-Other,ARGOS LTD,11-May-2020,48.94
CSC SENIOR MANAGEMENT,Facilities-Printing,Amazon.co.uk,11-May-2020,26.99
CSC SENIOR MANAGEMENT,Financial Services,LB CROYDON,11-May-2020,68.00
MH SERVICES,Accommodation,PASHA HOTEL,11-May-2020,455.00
PARKS & LEISURE SERVICES,Building-Timber,WICKES BUILDING,11-May-2020,149.97
BEREAVEMENT SERVICES,Cemetery & Crematorium,AMZNMKTPLACE AMAZON.CO.UK,12-May-2020,32.45
BEREAVEMENT SERVICES,Organised Activities,MOONPIG,12-May-2020,29.29
CSC SENIOR MANAGEMENT,Domestic Goods-Other,Yougotagift.com LTD,12-May-2020,36.86
CSC SENIOR MANAGEMENT,Domestic Goods-Other,CURRYS ONLINE,12-May-2020,605.96
CSC SENIOR MANAGEMENT,Domestic Goods-Other,Yougotagift.com LTD,12-May-2020,73.72
CSC SENIOR MANAGEMENT,Domestic Goods-Other,ARGOS LTD,12-May-2020,137.45
CSC SENIOR MANAGEMENT,Domestic Goods-Other,ARGOS LTD,12-May-2020,122.95
CSC SENIOR MANAGEMENT,Domestic Goods-Other,AMZNMKTPLACE AMAZON.CO.UK,12-May-2020,166.36
CSC SENIOR MANAGEMENT,Travel/Subsistence,OYSTER ONLINE,12-May-2020,35.00
DEMOCRATIC SERVICES,Domestic Goods-Other,AMZNMKTPLACE AMAZON.CO.UK,12-May-2020,21.08
DEMOCRATIC SERVICES,Facilities-Market Research,ZOOM.GBP,12-May-2020,14.39
EVENTS & FILMING,IT Software-Customised,ELEGANTTHEMES.COM,12-May-2020,89.73
MH SERVICES,Legal Services-Other,HMCOURTS-SERVICE.G,12-May-2020,75.00
OP SERVICES,Catering Food & Drink,NISA LOCAL,12-May-2020,50.46
PARKS & LEISURE SERVICES,Building-Paint,LEYLAND SDM,12-May-2020,80.36
PUBLIC HEALTH - ADULTS,Healthcare Services,Intern. Aids Society,12-May-2020,-300.26
CSC SENIOR MANAGEMENT,Domestic Goods-Other,WWW.JOHNLEWIS.COM,13-May-2020,209.00
CSC SENIOR MANAGEMENT,Domestic Goods-Other,AMAZON.CO.UK,13-May-2020,49.99
CSC SENIOR MANAGEMENT,Facilities-Market Research,WHSMITH.CO.UK,13-May-2020,10.68
CSC SENIOR MANAGEMENT,Furniture-Domestic Furniture,WWW.IKEA.COM,13-May-2020,128.00
CSC SENIOR MANAGEMENT,Travel/Subsistence,OYSTER AUTO TOPUP,13-May-2020,20.00
CSC SENIOR MANAGEMENT,Travel/Subsistence,OYSTER AUTO TOPUP,13-May-2020,20.00
DEMOCRATIC SERVICES,Domestic Goods-Other,AMZNMKTPLACE AMAZON.CO.UK,13-May-2020,108.56
DEMOCRATIC SERVICES,Stationery,STAPLES.CO.UK,13-May-2020,60.44
EMERGENCY PLANNING,Catering Food & Drink,TESCO STORE 2143,13-May-2020,86.98
HOUSING MANAGEMENT SERVICES,Financial Services,LAMBETH INTERNET PAYM,13-May-2020,11.00
OP SERVICES,Catering Food & Drink,TESCO-STORES 6567,13-May-2020,15.65
OT SERVICES,Domestic Goods-Other,ARGOS LTD,13-May-2020,83.94
PARKS & LEISURE SERVICES,Building-Timber,WICKES BUILDING,13-May-2020,6.08
PENSIONS SERVICES,Facilities-Market Research,AMAZON PRIME,13-May-2020,7.99
BEREAVEMENT SERVICES,IT Software-Customised,HP INC UK LIMITED,14-May-2020,46.98
CAMPAIGNS & COMMUNICATIONS,Books/Publications/Resources,RBI QSS SUBS,14-May-2020,390.00
CSC SENIOR MANAGEMENT,Domestic Goods-Other,ARGOS LTD,14-May-2020,436.94
CSC SENIOR MANAGEMENT,Domestic Goods-Other,ARGOS LTD,14-May-2020,73.90
CSC SENIOR MANAGEMENT,Domestic Goods-Other,Yougotagift.com LTD,14-May-2020,133.32
CSC SENIOR MANAGEMENT,Facilities-Printing,Amazon.co.uk,14-May-2020,49.99
CSC SENIOR MANAGEMENT,Financial Services,ROYAL BANK UK /,14-May-2020,60.00
CSC SENIOR MANAGEMENT,Financial Services,ROYAL BANK UK /,14-May-2020,100.00
CSC SENIOR MANAGEMENT,Travel/Subsistence,OYSTER AUTO TOPUP,14-May-2020,20.00
CSC SENIOR MANAGEMENT,Travel/Subsistence,OYSTER AUTO TOPUP,14-May-2020,20.00
DEMOCRATIC SERVICES,Banquet & Catering,BFS GROUP,14-May-2020,"6,667.63"
EMERGENCY PLANNING,Catering Food & Drink,TESCO STORE 2143,14-May-2020,52.29
RESIDENT ENGAGEMENT,Education-Supplies,ADVANCE ENTERPRISES AUTOM,14-May-2020,689.00
RESIDENT ENGAGEMENT,IT Software,ZOOM.GBP,14-May-2020,14.39
BEREAVEMENT SERVICES,Cemetery & Crematorium,AMZNMKTPLACE AMAZON.CO.UK,15-May-2020,29.88
CSC SENIOR MANAGEMENT,Accommodation,CASH ADVANCE FEE,15-May-2020,5.90
CSC SENIOR MANAGEMENT,Domestic Goods-Other,ARGOS LTD,15-May-2020,212.95
CSC SENIOR MANAGEMENT,Domestic Goods-Other,AMZNMKTPLACE AMAZON.CO.UK,15-May-2020,114.85
CSC SENIOR MANAGEMENT,Facilities-Printing,Amazon.co.uk,15-May-2020,49.99
CSC SENIOR MANAGEMENT,Travel/Subsistence,OYSTER AUTO TOPUP,15-May-2020,20.00
DEMOCRATIC SERVICES,Domestic Goods-Other,WWW.ALBERT-HARRISON.CO,15-May-2020,"2,136.27"
MH SERVICES,Legal Services-Other,HMCOURTS-SERVICE.G,15-May-2020,150.00
PARKS & LEISURE SERVICES,Financial Services,DVLA VEHICLE TAX,15-May-2020,617.50
SCHOOL & EDUCATIONAL IMPROVEMENT SERVICE,Consultancy-Business,AWEBER COMMUNICATIONS,15-May-2020,8.51
CAMPAIGNS & COMMUNICATIONS,Facilities-Design & Photography,CANVA* 02694-0558530,17-May-2020,11.03
CSC SENIOR MANAGEMENT,Domestic Goods-Other,ARGOS LTD,17-May-2020,166.95
CSC SENIOR MANAGEMENT,Travel/Subsistence,OYSTER AUTO TOPUP,17-May-2020,20.00
SCHOOL & EDUCATIONAL IMPROVEMENT SERVICE,Facilities-Advertising,FACEBK H8CPGSSCE2,17-May-2020,325.72
DEMOCRATIC SERVICES,Domestic Goods-Other,WWW.ALBERT-HARRISON.CO,18-May-2020,599.52
MH SERVICES,Legal Services-Other,HMCOURTS-SERVICE.G,18-May-2020,75.00
SCHOOL & EDUCATIONAL IMPROVEMENT SERVICE,Education-Other,Amazon.co.uk,18-May-2020,"1,150.00"
CSC SENIOR MANAGEMENT,Domestic Goods-Other,Yougotagift.com LTD,19-May-2020,31.30
CSC SENIOR MANAGEMENT,Domestic Goods-Other,TESCO ONLINE,19-May-2020,45.00
DEMOCRATIC SERVICES,Domestic Goods-Other,WWW.ALBERT-HARRISON.CO,19-May-2020,-418.32
DEMOCRATIC SERVICES,Stationery,STAPLES.CO.UK,19-May-2020,141.04
EARLY HELP,Taxi Fares,UBER TRIP HELP.UBER.COM,19-May-2020,19.29
EARLY HELP,Taxi Fares,UBER TRIP HELP.UBER.COM,19-May-2020,18.84
EVENTS & FILMING,Financial Services,WANDSWORTH COUNCIL,19-May-2020,70.00
HOUSING MANAGEMENT SERVICES,Building-Timber,WICKES BUILDING,19-May-2020,37.95
SCHOOL & EDUCATIONAL IMPROVEMENT SERVICE,Facilities-Advertising,GOOGLE  ADS3485321156,19-May-2020,220.85
CAMPAIGNS & COMMUNICATIONS,IT Software,ADOBE CREATIVE CLOUD,20-May-2020,212.40
CSC SENIOR MANAGEMENT,Domestic Goods-Other,Yougotagift.com LTD,20-May-2020,190.30
CSC SENIOR MANAGEMENT,Domestic Goods-Other,ARGOS LTD,20-May-2020,45.94
CSC SENIOR MANAGEMENT,Travel/Subsistence,OYSTER AUTO TOPUP,20-May-2020,20.00
DEMOCRATIC SERVICES,Domestic Goods-Other,AMZNMktplace,20-May-2020,44.76
DEMOCRATIC SERVICES,Domestic Goods-Other,WWW.ALBERT-HARRISON.CO,20-May-2020,899.42
DEMOCRATIC SERVICES,Domestic Goods-Other,AMZNMKTPLACE AMAZON.CO.UK,20-May-2020,50.51
DEMOCRATIC SERVICES,Travel/Subsistence,TFL BUSINESS BOPS WEB,20-May-2020,109.50
HOUSING MANAGEMENT SERVICES,Financial Services,LAMBETH INTERNET PAYM,20-May-2020,11.00
MH SERVICES,Taxi Fares,WWW.ADDISONLEE.COM,20-May-2020,31.76
PARKING OPERATIONS,Facilities-Printing,Amazon.co.uk,20-May-2020,20.00
CAMPAIGNS & COMMUNICATIONS,Conference Expenses,ZOOM.GBP,21-May-2020,-101.83
CSC SENIOR MANAGEMENT,Domestic Goods-Other,AMZNMktplace,21-May-2020,74.98
CSC SENIOR MANAGEMENT,Domestic Goods-Other,AMZNMKTPLACE AMAZON.CO.UK,21-May-2020,156.78
CSC SENIOR MANAGEMENT,Domestic Goods-Other,Yougotagift.com LTD,21-May-2020,133.11
CSC SENIOR MANAGEMENT,Facilities-Market Research,CRM LTD LUMIS LEICESTE,21-May-2020,"6,580.00"
CSC SENIOR MANAGEMENT,Financial Services,ROYAL BANK UK /,21-May-2020,160.00
DEMOCRATIC SERVICES,Banquet & Catering,BFS GROUP,21-May-2020,"9,439.31"
DEMOCRATIC SERVICES,Travel/Subsistence,TFL BUSINESS BOPS WEB,21-May-2020,38.00
EMERGENCY PLANNING,Catering Food & Drink,TESCO STORE 2143,21-May-2020,74.94
CAMPAIGNS & COMMUNICATIONS,Facilities-Advertising,FACEBK KGVBHT66M2,22-May-2020,2.69
CSC SENIOR MANAGEMENT,Accommodation,CASH ADVANCE FEE,22-May-2020,5.90
CSC SENIOR MANAGEMENT,Domestic Goods-Other,AMZNMKTPLACE AMAZON.CO.UK,22-May-2020,208.36
CSC SENIOR MANAGEMENT,Domestic Goods-Other,Yougotagift.com LTD,22-May-2020,74.32
CSC SENIOR MANAGEMENT,Domestic Goods-Other,Yougotagift.com LTD,22-May-2020,71.91
CSC SENIOR MANAGEMENT,Domestic Goods-Other,ARGOS LTD,22-May-2020,422.95
CSC SENIOR MANAGEMENT,Facilities-Storage,WWW.SAFESTORE.CO.UK,22-May-2020,151.42
CSC SENIOR MANAGEMENT,Telecommunications,VODAFONE LTD,22-May-2020,25.00
DEMOCRATIC SERVICES,Building-Others,PALLET TRUCK WAREHOUSE,22-May-2020,454.80
DEMOCRATIC SERVICES,Domestic Goods-Other,WWW.ALBERT-HARRISON.CO,22-May-2020,-5.51
EMERGENCY PLANNING,Catering Food & Drink,TESCO STORE 2143,22-May-2020,67.69
MH SERVICES,Legal Services-Other,HMCOURTS-SERVICE.G,22-May-2020,150.00
PARKS & LEISURE SERVICES,Building-Timber,SELCO TRADING CTR,22-May-2020,90.41
CSC SENIOR MANAGEMENT,Domestic Goods-Other,AMZNMktplace,23-May-2020,75.99
CSC SENIOR MANAGEMENT,Domestic Goods-Other,ARGOS LTD,23-May-2020,43.94
DEMOCRATIC SERVICES,Domestic Goods-Other,AMZNMktplace,23-May-2020,30.98
DEMOCRATIC SERVICES,Travel/Subsistence,TFL BUSINESS BOPS WEB,23-May-2020,138.50
CAMPAIGNS & COMMUNICATIONS,Facilities-Advertising,FACEBK 8D7N7TE6M2,24-May-2020,60.00
CSC SENIOR MANAGEMENT,Travel/Subsistence,OYSTER AUTO TOPUP,24-May-2020,20.00
CSC SENIOR MANAGEMENT,Travel/Subsistence,OYSTER AUTO TOPUP,24-May-2020,20.00
DEMOCRATIC SERVICES,Domestic Goods-Other,AMZNMKTPLACE AMAZON.CO.UK,24-May-2020,34.98
BEREAVEMENT SERVICES,Cemetery & Crematorium,AMZNMKTPLACE AMAZON.CO.UK,25-May-2020,15.98
BEREAVEMENT SERVICES,Stationery,AMZNMKTPLACE AMAZON.CO.UK,25-May-2020,8.95
CSC SENIOR MANAGEMENT,Taxi Fares,KV CARS & COURIERS LTD,25-May-2020,150.70
HOUSING MANAGEMENT SERVICES,Domestic Goods-Other,AMZNMKTPLACE AMAZON.CO.UK,25-May-2020,58.47
BEREAVEMENT SERVICES,Domestic Goods-Other,ROADWARE LTD,26-May-2020,252.00
CSC SENIOR MANAGEMENT,Consultancy-Business,POSTURITE LTD,26-May-2020,36.82
CSC SENIOR MANAGEMENT,Financial Services,ROYAL BANK UK /,26-May-2020,60.00
DEMOCRATIC SERVICES,Professional & Advisory Services,PAYPAL,26-May-2020,"1,210.00"
DEMOCRATIC SERVICES,Travel/Subsistence,TFL BUSINESS BOPS WEB,26-May-2020,24.00
MH SERVICES,Accommodation,PASHA HOTEL,26-May-2020,455.00
PARKS & LEISURE SERVICES,Building-General,Selco Trade Centres Ltd,26-May-2020,91.55
BEREAVEMENT SERVICES,Cemetery & Crematorium,AMZNMktplace,27-May-2020,105.00
BEREAVEMENT SERVICES,Stationery,AMZNMKTPLACE AMAZON.CO.UK,27-May-2020,2.95
CAMPAIGNS & COMMUNICATIONS,Facilities-Advertising,FACEBK 6EKS4T26M2,27-May-2020,60.00
CSC SENIOR MANAGEMENT,Accommodation,CASH ADVANCE FEE,27-May-2020,2.95
CSC SENIOR MANAGEMENT,Facilities-Market Research,Amazon Prime,27-May-2020,7.99
CSC SENIOR MANAGEMENT,Telecommunications,VESTA VODAFONE,27-May-2020,30.00
DEMOCRATIC SERVICES,Travel/Subsistence,TFL BUSINESS BOPS WEB,27-May-2020,11.50
EARLY HELP,Consultancy-Business,POSTURITE LTD,27-May-2020,35.99
LIBRARIES & ARCHIVES,Facilities-Market Research,ZOOM.GBP,27-May-2020,48.00
MH SERVICES,Legal Services-Other,HMCOURTS-SERVICE.G,27-May-2020,150.00
RESIDENT EXPERIENCE,Domestic Goods-Other,AMZNMktplace,27-May-2020,65.00
SHELTERED HOUSING,Domestic Goods-Other,AMZNMKTPLACE AMAZON.CO.UK,27-May-2020,34.90
SHELTERED HOUSING,Domestic Goods-Other,AMZNMKTPLACE AMAZON.CO.UK,27-May-2020,41.78
SHELTERED HOUSING,Domestic Goods-Other,AMZNMKTPLACE AMAZON.CO.UK,27-May-2020,48.66
SHELTERED HOUSING,Domestic Goods-Other,AMZNMktplace,27-May-2020,21.14
CSC SENIOR MANAGEMENT,Domestic Goods-Other,ARGOS LTD,28-May-2020,202.95
CSC SENIOR MANAGEMENT,Domestic Goods-Other,AMZNMKTPLACE AMAZON.CO.UK,28-May-2020,109.83
CSC SENIOR MANAGEMENT,Financial Services,ROYAL BANK UK /,28-May-2020,340.00
DEMOCRATIC SERVICES,Banquet & Catering,BFS GROUP,28-May-2020,"8,509.89"
DEMOCRATIC SERVICES,Travel/Subsistence,ANDERSON TOURS TELE OR,28-May-2020,-780.00
DEMOCRATIC SERVICES,Travel/Subsistence,TFL BUSINESS BOPS WEB,28-May-2020,23.00
EARLY HELP,Taxi Fares,UBER *TRIP HELP.UBER.COM,28-May-2020,18.55
EARLY HELP,Taxi Fares,UBER TRIP HELP.UBER.COM,28-May-2020,19.80
EVENTS & FILMING,Consultancy-Business,BLS*MONDAY.COM,28-May-2020,223.20
EVENTS & FILMING,Professional & Advisory Services,ALLSEATED SUBSCRIPTION,28-May-2020,74.91
MH SERVICES,Legal Services-Other,HMCOURTS-SERVICE.G,28-May-2020,75.00
PARKS & LEISURE SERVICES,Vehicle Parts,STOCKWELL MOTOR ACCES,28-May-2020,65.46
PARKS & LEISURE SERVICES,Vehicle Parts,STOCKWELL MOTOR ACCES,28-May-2020,240.00
SCHOOL & EDUCATIONAL IMPROVEMENT SERVICE,Facilities-Advertising,FACEBK TZHSKTWBE2,28-May-2020,700.00
SHELTERED HOUSING,Domestic Goods-Other,AMZNMKTPLACE AMAZON.CO.UK,28-May-2020,41.86
SHELTERED HOUSING,Domestic Goods-Other,AMZNMktplace,28-May-2020,29.90
SHELTERED HOUSING,Domestic Goods-Other,AMZNMKTPLACE AMAZON.CO.UK,28-May-2020,17.94
SHELTERED HOUSING,Domestic Goods-Other,AMZNMKTPLACE AMAZON.CO.UK,28-May-2020,35.88
CSC SENIOR MANAGEMENT,Accommodation,CASH ADVANCE FEE,29-May-2020,10.03
CSC SENIOR MANAGEMENT,Domestic Goods-Other,Yougotagift.com LTD,29-May-2020,36.75
CSC SENIOR MANAGEMENT,Financial Services,ROYAL BANK UK /,29-May-2020,70.00
DEMOCRATIC SERVICES,Domestic Goods-Other,WWW.ALBERT-HARRISON.CO,29-May-2020,821.88
DEMOCRATIC SERVICES,Travel/Subsistence,TFL BUSINESS BOPS WEB,29-May-2020,34.50
EMERGENCY PLANNING,Catering Food & Drink,TESCO STORE 2143,29-May-2020,52.39
PARKS & LEISURE SERVICES,Building-General,MACKAYS HARDWARE,29-May-2020,101.00
PARKS & LEISURE SERVICES,Domestic Goods-Other,AMZNMKTPLACE AMAZON.CO.UK,29-May-2020,179.94
CSC SENIOR MANAGEMENT,Travel/Subsistence,OYSTER AUTO TOPUP,30-May-2020,20.00
EMERGENCY PLANNING,Catering Food & Drink,TESCO STORE 2143,30-May-2020,54.31
CAMPAIGNS & COMMUNICATIONS,IT Services,WINSERVE2993582,31-May-2020,11.99
CSC SENIOR MANAGEMENT,Travel/Subsistence,OYSTER AUTO TOPUP,31-May-2020,20.00
EVENTS & FILMING,Facilities-Advertising,FACEBK NMW67TABV2,31-May-2020,5.38
CAMPAIGNS & COMMUNICATIONS,IT Services,NATIONBUILDER,01-Jun-2020,183.10
CSC SENIOR MANAGEMENT,Accommodation,CASH ADVANCE FEE,01-Jun-2020,2.95
CSC SENIOR MANAGEMENT,Domestic Goods-Other,ARGOS LTD,01-Jun-2020,161.95
CSC SENIOR MANAGEMENT,Travel/Subsistence,TFL AUTOSETTLEMENT,01-Jun-2020,40.00
PARKS & LEISURE SERVICES,Building-General,SCREWFIX DIRECT,01-Jun-2020,137.36
PARKS & LEISURE SERVICES,Building-General,B & Q 1037,01-Jun-2020,29.63
PARKS & LEISURE SERVICES,Building-Timber,TP VAUXHALL,01-Jun-2020,43.87
PARKS & LEISURE SERVICES,Facilities-Advertising,WH SMITH,01-Jun-2020,20.47
PARKS & LEISURE SERVICES,Mail Services-Postage,POST OFFICE COUNTER,01-Jun-2020,35.25
BEREAVEMENT SERVICES,IT Software-Customised,HP INC UK LIMITED,02-Jun-2020,16.99
CAMPAIGNS & COMMUNICATIONS,IT Services,GOOGLE *GSUITE_lambeth,02-Jun-2020,20.70
CSC SENIOR MANAGEMENT,Domestic Goods-Other,Yougotagift.com LTD,02-Jun-2020,160.55
CSC SENIOR MANAGEMENT,Domestic Goods-Other,CURRYS ONLINE,02-Jun-2020,239.00
CSC SENIOR MANAGEMENT,Domestic Goods-Other,ARGOS LTD,02-Jun-2020,94.95
CSC SENIOR MANAGEMENT,Financial Services,LOYD - 18 ACRE LANE,02-Jun-2020,300.00
DEMOCRATIC SERVICES,Domestic Goods-Other,AMZNMKTPLACE AMAZON.CO.UK,02-Jun-2020,-31.49
HOUSING MANAGEMENT SERVICES,IT Software-Customised,INTELLISOFTWARE LTD,02-Jun-2020,52.80
HOUSING OPTIONS - GF,Furniture-Domestic Furniture,WAYFAIR #2807594108,02-Jun-2020,44.98
HOUSING OPTIONS - GF,Furniture-Domestic Furniture,IKEA LTD SHOP ONLINE,02-Jun-2020,509.00
HOUSING OPTIONS - GF,Furniture-Other,ARGOS LTD,02-Jun-2020,18.95
MH SERVICES,Legal Services-Other,HMCOURTS-SERVICE.G,02-Jun-2020,300.00
PARKS & LEISURE SERVICES,Clothing-Uniforms,WORKWEAR EXPRESS LIMITED,02-Jun-2020,95.47
PARKS & LEISURE SERVICES,Domestic Goods-Other,AMZNMKTPLACE AMAZON.CO.UK,02-Jun-2020,-139.99
BUSINESS IMPROVEMENT,IT Services,AWS EMEA,03-Jun-2020,148.61
CAMPAIGNS & COMMUNICATIONS,IT Services,NATIONBUILDER,03-Jun-2020,97.68
CSC SENIOR MANAGEMENT,Accommodation,CASH ADVANCE FEE,03-Jun-2020,8.85
CSC SENIOR MANAGEMENT,Domestic Goods-Other,Yougotagift.com LTD,03-Jun-2020,108.03
CSC SENIOR MANAGEMENT,Financial Services,LBL NOT PRESENT,03-Jun-2020,11.00
DEMOCRATIC SERVICES,Consultancy-Business,WHOLESALE SERVICES,03-Jun-2020,1.99
DEMOCRATIC SERVICES,Domestic Goods-Other,WWW.ALBERT-HARRISON.CO,03-Jun-2020,"1,648.83"
DEMOCRATIC SERVICES,Domestic Goods-Other,AMZNMKTPLACE AMAZON.CO.UK,03-Jun-2020,14.98
DEMOCRATIC SERVICES,Domestic Goods-Other,AMZNMktplace,03-Jun-2020,179.95
DEMOCRATIC SERVICES,IT Software,ETI LTD,03-Jun-2020,-78.96
EVENTS & FILMING,Facilities-Printing,Amazon.co.uk,03-Jun-2020,20.22
PARKS & LEISURE SERVICES,Building-Timber,SELCO TRADING CTR,03-Jun-2020,82.66
CAMPAIGNS & COMMUNICATIONS,IT Services,BUZZSUMO.COM PRO,04-Jun-2020,97.86
CSC SENIOR MANAGEMENT,Domestic Goods-Other,Yougotagift.com LTD,04-Jun-2020,81.19
CSC SENIOR MANAGEMENT,Facilities-Printing,Amazon.co.uk,04-Jun-2020,9.43
CSC SENIOR MANAGEMENT,Travel/Subsistence,OYSTER BUS AUTOLOAD,04-Jun-2020,40.00
DEMOCRATIC SERVICES,Accommodation,HIGHSTREET VOUCHERS,04-Jun-2020,250.00
DEMOCRATIC SERVICES,Domestic Goods-Other,WWW.ALBERT-HARRISON.CO,04-Jun-2020,-826.84
DEMOCRATIC SERVICES,Travel/Subsistence,TFL BUSINESS BOPS WEB,04-Jun-2020,46.00
EVENTS & FILMING,IT Software,"RESTREAM, INC.",04-Jun-2020,81.55
MH SERVICES,Accommodation,PASHA HOTEL,04-Jun-2020,455.00
MH SERVICES,Legal Services-Other,HMCOURTS-SERVICE.G,04-Jun-2020,75.00
PARKS & LEISURE SERVICES,Building-General,Selco Trade Centres Ltd,04-Jun-2020,17.72
PARKS & LEISURE SERVICES,Building-General,LANDSCAPE SUPPLY COMPA,04-Jun-2020,208.44
PARKS & LEISURE SERVICES,Building-Timber,TP VAUXHALL,04-Jun-2020,96.74
PARKS & LEISURE SERVICES,Vehicle Parts,STOCKWELL MOTOR ACCES,04-Jun-2020,108.98
CSC SENIOR MANAGEMENT,Domestic Goods-Other,ARGOS LTD,05-Jun-2020,127.88
CSC SENIOR MANAGEMENT,Domestic Goods-Other,Yougotagift.com LTD,05-Jun-2020,383.22
CSC SENIOR MANAGEMENT,Domestic Goods-Other,AMZNMKTPLACE AMAZON.CO.UK,05-Jun-2020,144.99
CSC SENIOR MANAGEMENT,Financial Services,ROYAL BANK UK /,05-Jun-2020,370.00
CSC SENIOR MANAGEMENT,Financial Services,STA INTERNATIONAL LTD,05-Jun-2020,"1,589.21"
CSC SENIOR MANAGEMENT,Travel/Subsistence,OYSTER BUS AUTOLOAD,05-Jun-2020,40.00
CSC SENIOR MANAGEMENT,Travel/Subsistence,AUTO TOP-UP ARREARS,05-Jun-2020,40.00
CSC SENIOR MANAGEMENT,Travel/Subsistence,OYSTER AUTO TOPUP,05-Jun-2020,20.00
DEMOCRATIC SERVICES,Accommodation,HIGHSTREET VOUCHERS,05-Jun-2020,350.00
DEMOCRATIC SERVICES,Travel/Subsistence,TFL BUSINESS BOPS WEB,05-Jun-2020,11.50
EARLY HELP,Financial Services,ROYAL BANK UK /,05-Jun-2020,200.00
EMERGENCY PLANNING,Catering Food & Drink,TESCO STORE 2143,05-Jun-2020,49.97
HOUSING MANAGEMENT SERVICES,Building-General,PENNY SAVERS,05-Jun-2020,61.90
MH SERVICES,Legal Services-Other,HMCOURTS-SERVICE.G,05-Jun-2020,150.00
PARKS & LEISURE SERVICES,Building-Roofing,TARA FABRICATIONS,05-Jun-2020,216.00
SUBSTANCE MISUSE,Facilities-Market Research,ZOOM.GBP,05-Jun-2020,143.88
CAMPAIGNS & COMMUNICATIONS,Facilities-Advertising,FACEBK QVZJWSJ6M2,06-Jun-2020,27.34
CSC SENIOR MANAGEMENT,Facilities-Market Research,AMAZON PRIME,06-Jun-2020,7.99
CSC SENIOR MANAGEMENT,Travel/Subsistence,OYSTER AUTO TOPUP,06-Jun-2020,20.00
CSC SENIOR MANAGEMENT,Travel/Subsistence,OYSTER AUTO TOPUP,06-Jun-2020,20.00
EMERGENCY PLANNING,Catering Food & Drink,TESCO STORE 2143,06-Jun-2020,62.29
EVENTS & FILMING,Facilities-Printing,Amazon.co.uk,06-Jun-2020,30.64
HOUSING MANAGEMENT SERVICES,Facilities-Market Research,Amazon Prime,06-Jun-2020,7.99
HOUSING OPTIONS - GF,Furniture-Domestic Furniture,AMZNMKTPLACE AMAZON.CO.UK,06-Jun-2020,249.99
CSC SENIOR MANAGEMENT,Travel/Subsistence,OYSTER AUTO TOPUP,07-Jun-2020,20.00
EVENTS & FILMING,Facilities-Printing,Amazon.co.uk,07-Jun-2020,54.91
BEREAVEMENT SERVICES,Financial Services,L B SOUTHWARK - INT,08-Jun-2020,22.00
CSC SENIOR MANAGEMENT,Accommodation,HTTPS YOUGOTAGIFT COM,08-Jun-2020,23.50
CSC SENIOR MANAGEMENT,Accommodation,CASH ADVANCE FEE,08-Jun-2020,13.28
CSC SENIOR MANAGEMENT,Accommodation,HTTPS YOUGOTAGIFT COM,08-Jun-2020,70.52
CSC SENIOR MANAGEMENT,Financial Services,GEN REGISTER OFFICE,08-Jun-2020,25.00
CSC SENIOR MANAGEMENT,Financial Services,BT PHONE / ATM KIOSK,08-Jun-2020,30.99
CSC SENIOR MANAGEMENT,Financial Services,ROYAL BANK UK /,08-Jun-2020,500.00
DEMOCRATIC SERVICES,Accommodation,HIGHSTREET VOUCHERS,08-Jun-2020,200.00
DEMOCRATIC SERVICES,Travel/Subsistence,TFL BUSINESS BOPS WEB,08-Jun-2020,23.00
EARLY HELP,Accommodation,CASH ADVANCE FEE,08-Jun-2020,5.90
EARLY HELP,Domestic Goods-Other,AMAZON.CO.UK,08-Jun-2020,49.60
EARLY HELP,Domestic Goods-Other,AMZNMKTPLACE AMAZON.CO.UK,08-Jun-2020,98.91
EVENTS & FILMING,Domestic Goods-Other,AMAZON.CO.UK,08-Jun-2020,19.27
FINANCIAL PLANNING AND MANAGEMENT,Domestic Goods-Other,ARGOS LTD,08-Jun-2020,790.95
HOUSING OPTIONS - GF,Books/Publications/Resources,WHICH,08-Jun-2020,11.75
HOUSING OPTIONS - GF,Furniture-Other,ARGOS LTD,08-Jun-2020,18.95
MH SERVICES,Legal Services-Other,HMCOURTS-SERVICE.G,08-Jun-2020,150.00
OP SERVICES,Catering Food & Drink,TESCO-STORES 6567,08-Jun-2020,54.72
BEREAVEMENT SERVICES,Domestic Goods-Other,AMZNMktplace,09-Jun-2020,32.50
CSC SENIOR MANAGEMENT,Accommodation,CASH ADVANCE FEE,09-Jun-2020,20.36
CSC SENIOR MANAGEMENT,Facilities-Printing,Amazon.co.uk,09-Jun-2020,26.19
CSC SENIOR MANAGEMENT,Financial Services,ROYAL BANK UK /,09-Jun-2020,70.00
CSC SENIOR MANAGEMENT,Healthcare Services,CRYSTAL HEALTH GROUP LIMI,09-Jun-2020,156.00
CSC SENIOR MANAGEMENT,Telecommunications,EE TOP UP VESTA,09-Jun-2020,15.00
CSC SENIOR MANAGEMENT,Travel/Subsistence,OYSTER BUS AUTOLOAD,09-Jun-2020,20.00
CSC SENIOR MANAGEMENT,Travel/Subsistence,OYSTER BUS AUTOLOAD,09-Jun-2020,20.00
DEMOCRATIC SERVICES,Catering Food & Drink,WWW.BODYKIND.COM,09-Jun-2020,364.80
DEMOCRATIC SERVICES,Facilities-Market Research,ZOOM.GBP,09-Jun-2020,14.39
DEMOCRATIC SERVICES,Healthcare Equipment,ISHOP,09-Jun-2020,981.00
DEMOCRATIC SERVICES,Travel/Subsistence,TFL BUSINESS BOPS WEB,09-Jun-2020,11.50
EARLY HELP,Taxi Fares,UBER TRIP HELP.UBER.COM,09-Jun-2020,15.39
EARLY HELP,Taxi Fares,UBER TRIP HELP.UBER.COM,09-Jun-2020,14.04
MH SERVICES,Legal Services-Other,HMCOURTS-SERVICE.G,09-Jun-2020,75.00
SCHOOL & EDUCATIONAL IMPROVEMENT SERVICE,Financial Services-Grants,STEPHEN LAWRENCE TRUST,09-Jun-2020,500.00
CSC SENIOR MANAGEMENT,Accommodation,HTTPS YOUGOTAGIFT COM,10-Jun-2020,634.41
CSC SENIOR MANAGEMENT,Accommodation,CASH ADVANCE FEE,10-Jun-2020,5.90
CSC SENIOR MANAGEMENT,Domestic Goods-Other,ARGOS LTD,10-Jun-2020,74.93
CSC SENIOR MANAGEMENT,Facilities-Printing,Amazon.co.uk,10-Jun-2020,28.49
CSC SENIOR MANAGEMENT,Financial Services,ROYAL BANK UK /,10-Jun-2020,250.00
CSC SENIOR MANAGEMENT,Travel/Subsistence,OYSTER AUTO TOPUP,10-Jun-2020,20.00
CSC SENIOR MANAGEMENT,Travel/Subsistence,OYSTER BUS AUTOLOAD,10-Jun-2020,20.00
DEMOCRATIC SERVICES,Domestic Goods-Other,AMZNMktplace,10-Jun-2020,34.80
DEMOCRATIC SERVICES,IT Software,SP * TIME CAPSULES UK,10-Jun-2020,487.90
FINANCIAL PLANNING AND MANAGEMENT,Domestic Goods-Other,ARGOS LTD,10-Jun-2020,898.84
HOUSING MANAGEMENT SERVICES,Horticultural-Seeds & Plants,Euroflorist AB,10-Jun-2020,24.98
OT SERVICES,Facilities-Retail,SYDENHAM INSIDE,10-Jun-2020,-54.00
PARKS & LEISURE SERVICES,Building-General,SCREWFIX DIRECT,10-Jun-2020,139.63
PARKS & LEISURE SERVICES,Building-Tools,WWW.SAFETYLIFTINGEAR.C,10-Jun-2020,488.98
PARKS & LEISURE SERVICES,Consultancy-Business,FORTRESS MASTER LOCKSMITH,10-Jun-2020,37.96
CAMPAIGNS & COMMUNICATIONS,Facilities-Design & Photography,iStock.com,11-Jun-2020,900.00
CSC SENIOR MANAGEMENT,Accommodation,CASH ADVANCE FEE,11-Jun-2020,7.38
CSC SENIOR MANAGEMENT,Education-Other,FREEDOM PROGRAMME LIMITED,11-Jun-2020,12.00
DEMOCRATIC SERVICES,Travel/Subsistence,TFL BUSINESS BOPS WEB,11-Jun-2020,11.50
HOUSING MANAGEMENT SERVICES,Financial Services,LAMBETH INTERNET PAYM,11-Jun-2020,11.00
PARKS & LEISURE SERVICES,Building-General,SCREWFIX DIRECT,11-Jun-2020,69.90
RESIDENT ENGAGEMENT,Books/Publications/Resources,WWW.INSIDEHOUSING.CO.U,11-Jun-2020,206.00
BEREAVEMENT SERVICES,Domestic Goods-Other,ARGOS LTD,12-Jun-2020,179.99
CSC SENIOR MANAGEMENT,Domestic Goods-Other,AMZNMktplace,12-Jun-2020,40.98
CSC SENIOR MANAGEMENT,Facilities-Printing,Amazon.co.uk,12-Jun-2020,59.99
CSC SENIOR MANAGEMENT,Financial Services,ROYAL BANK UK /,12-Jun-2020,160.00
CSC SENIOR MANAGEMENT,Financial Services,LAMBETH INTERNET PAYM,12-Jun-2020,18.00
CSC SENIOR MANAGEMENT,Travel/Subsistence,OYSTER BUS AUTOLOAD,12-Jun-2020,20.00
CSC SENIOR MANAGEMENT,Travel/Subsistence,OYSTER BUS AUTOLOAD,12-Jun-2020,20.00
CSC SENIOR MANAGEMENT,Travel/Subsistence,OYSTER ONLINE,12-Jun-2020,20.00
CSC SENIOR MANAGEMENT,Works-Construction,DISCOUNT CARPETS S,12-Jun-2020,764.00
OP SERVICES,Catering Food & Drink,TESCO-STORES 6567,12-Jun-2020,27.36
PARKING OPERATIONS,Facilities-Printing,Amazon.co.uk,12-Jun-2020,20.00
PARKS & LEISURE SERVICES,Domestic Goods-Other,AMZNMktplace,12-Jun-2020,35.79
PARKS & LEISURE SERVICES,Financial Services,LAND REGISTRY,12-Jun-2020,6.00
PARKS & LEISURE SERVICES,Financial Services,LAND REGISTRY,12-Jun-2020,3.00
PARKS & LEISURE SERVICES,Financial Services,LAND REGISTRY,12-Jun-2020,6.00
PARKS & LEISURE SERVICES,Financial Services,LAND REGISTRY,12-Jun-2020,6.00
PARKS & LEISURE SERVICES,Financial Services,LAND REGISTRY,12-Jun-2020,6.00
PARKS & LEISURE SERVICES,Financial Services,LAND REGISTRY,12-Jun-2020,6.00
PARKS & LEISURE SERVICES,Financial Services,LAND REGISTRY,12-Jun-2020,6.00
PARKS & LEISURE SERVICES,Financial Services,LAND REGISTRY,12-Jun-2020,6.00
PARKS & LEISURE SERVICES,Financial Services,LAND REGISTRY,12-Jun-2020,6.00
PARKS & LEISURE SERVICES,Financial Services,LAND REGISTRY,12-Jun-2020,6.00
PARKS & LEISURE SERVICES,Financial Services,LAND REGISTRY,12-Jun-2020,6.00
PARKS & LEISURE SERVICES,Financial Services,LAND REGISTRY,12-Jun-2020,6.00
PARKS & LEISURE SERVICES,Financial Services,LAND REGISTRY,12-Jun-2020,6.00
PARKS & LEISURE SERVICES,Financial Services,LAND REGISTRY,12-Jun-2020,6.00
PARKS & LEISURE SERVICES,Financial Services,LAND REGISTRY,12-Jun-2020,6.00
BEREAVEMENT SERVICES,Catering Food & Drink,AMZNMKTPLACE AMAZON.CO.UK,13-Jun-2020,13.98
CSC SENIOR MANAGEMENT,Travel/Subsistence,OYSTER AUTO TOPUP,13-Jun-2020,20.00
CSC SENIOR MANAGEMENT,Travel/Subsistence,OYSTER AUTO TOPUP,13-Jun-2020,20.00
CSC SENIOR MANAGEMENT,Travel/Subsistence,OYSTER BUS AUTOLOAD,13-Jun-2020,20.00
CSC SENIOR MANAGEMENT,Travel/Subsistence,OYSTER AUTO TOPUP,13-Jun-2020,20.00
EMERGENCY PLANNING,Catering Food & Drink,TESCO STORE 2143,13-Jun-2020,50.39
CSC SENIOR MANAGEMENT,Travel/Subsistence,OYSTER BUS AUTOLOAD,14-Jun-2020,20.00
EMERGENCY PLANNING,Catering Food & Drink,TESCO STORE 2143,14-Jun-2020,57.58
RESIDENT ENGAGEMENT,Facilities-Market Research,ZOOM.GBP,14-Jun-2020,14.39
ASC SENIOR MANAGEMENT,Professional & Advisory Services,PAYPAL,15-Jun-2020,180.00
CSC SENIOR MANAGEMENT,Accommodation,CASH ADVANCE FEE,15-Jun-2020,5.90
CSC SENIOR MANAGEMENT,Domestic Goods-Other,AMZNMktplace,15-Jun-2020,202.88
CSC SENIOR MANAGEMENT,Domestic Goods-Other,ARGOS LTD,15-Jun-2020,299.99
CSC SENIOR MANAGEMENT,Domestic Goods-Other,WWW.VOUCHEREXPRESS.CO.,15-Jun-2020,80.00
CSC SENIOR MANAGEMENT,Domestic Goods-Other,WWW.VOUCHEREXPRESS.CO.,15-Jun-2020,100.00
CSC SENIOR MANAGEMENT,Facilities-Printing,Amazon.co.uk,15-Jun-2020,6.20
CSC SENIOR MANAGEMENT,Travel/Subsistence,OYSTER BUS AUTOLOAD,15-Jun-2020,20.00
DEMOCRATIC SERVICES,Domestic Goods-Other,WWW.ALBERT-HARRISON.CO,15-Jun-2020,647.88
FINANCIAL PLANNING AND MANAGEMENT,Professional & Advisory Services,WWW.DCBLTD.COM,15-Jun-2020,"20,131.41"
MH SERVICES,Legal Services-Other,HMCOURTS-SERVICE.G,15-Jun-2020,150.00
PARKS & LEISURE SERVICES,Building-Timber,WICKES BUILDING,15-Jun-2020,11.90
PARKS & LEISURE SERVICES,Domestic Goods-Other,CURRYS ONLINE,15-Jun-2020,109.99
PARKS & LEISURE SERVICES,Horticultural-Other,WWW.KEDEL.CO.UK,15-Jun-2020,341.07
SCHOOL & EDUCATIONAL IMPROVEMENT SERVICE,Consultancy-Business,AWEBER COMMUNICATIONS,15-Jun-2020,8.21
SCHOOL & EDUCATIONAL IMPROVEMENT SERVICE,Education-Supplies,Amazon.co.uk,15-Jun-2020,50.00
SCHOOL & EDUCATIONAL IMPROVEMENT SERVICE,Financial Services-Grants,PACEY COMMERCIAL SERVI,15-Jun-2020,82.40
SUBSTANCE MISUSE,Domestic Goods-Other,AMZNMktplace,15-Jun-2020,32.99
CSC SENIOR MANAGEMENT,Domestic Goods-Other,WWW.VOUCHEREXPRESS.CO.,16-Jun-2020,40.00
CSC SENIOR MANAGEMENT,Domestic Goods-Other,WWW.VOUCHEREXPRESS.CO.,16-Jun-2020,30.00
CSC SENIOR MANAGEMENT,Financial Services,GEN REGISTER OFFICE,16-Jun-2020,-31.50
CSC SENIOR MANAGEMENT,Financial Services,MFG STREATHAM,16-Jun-2020,200.00
CSC SENIOR MANAGEMENT,Financial Services,GEN REGISTER OFFICE,16-Jun-2020,76.00
CSC SENIOR MANAGEMENT,Travel/Subsistence,OYSTER BUS AUTOLOAD,16-Jun-2020,20.00
CSC SENIOR MANAGEMENT,Travel/Subsistence,OYSTER BUS AUTOLOAD,16-Jun-2020,20.00
DEMOCRATIC SERVICES,Domestic Goods-Other,WWW.ALBERT-HARRISON.CO,16-Jun-2020,-11.23
EARLY HELP,Domestic Goods-Other,AMZNMktplace,16-Jun-2020,24.64
FINANCIAL PLANNING AND MANAGEMENT,Domestic Goods-Other,ARGOS LTD,16-Jun-2020,597.43
LEGAL SERVICES,Letting Agents,FOXTONS,16-Jun-2020,"3,495.71"
PARKS & LEISURE SERVICES,Financial Services,LAND REGISTRY,16-Jun-2020,6.00
PARKS & LEISURE SERVICES,Financial Services,LAND REGISTRY,16-Jun-2020,6.00
PARKS & LEISURE SERVICES,Works-Construction/Materials,THE TRADE HUB,16-Jun-2020,105.96
BEREAVEMENT SERVICES,Domestic Goods-Other,AMZNMktplace,17-Jun-2020,63.45
CAMPAIGNS & COMMUNICATIONS,Facilities-Design & Photography,CANVA* 02725-0580190,17-Jun-2020,10.66
CSC SENIOR MANAGEMENT,Accommodation,CASH ADVANCE FEE,17-Jun-2020,5.90
CSC SENIOR MANAGEMENT,Domestic Goods-Other,WWW.VOUCHEREXPRESS.CO.,17-Jun-2020,175.00
CSC SENIOR MANAGEMENT,Domestic Goods-Other,WWW.VOUCHEREXPRESS.CO.,17-Jun-2020,150.00
CSC SENIOR MANAGEMENT,Financial Services,NATWEST BANK  /,17-Jun-2020,30.00
CSC SENIOR MANAGEMENT,Travel/Subsistence,OYSTER BUS AUTOLOAD,17-Jun-2020,20.00
DEMOCRATIC SERVICES,Travel/Subsistence,TFL BUSINESS BOPS WEB,17-Jun-2020,24.00
HOUSING OPTIONS - GF,Furniture-Domestic Furniture,IKEA LTD SHOP ONLINE,17-Jun-2020,459.00
PARKS & LEISURE SERVICES,Facilities-Advertising,WH SMITH,17-Jun-2020,18.24
SCHOOL & EDUCATIONAL IMPROVEMENT SERVICE,Facilities-Advertising,FACEBK LHSWZTWBE2,17-Jun-2020,453.54
SPECIALIST YOUTH,Travel/Subsistence,OYSTER AUTO TOPUP,17-Jun-2020,20.00
CONTRACT SERVICES,Travel/Subsistence,J.B.W. GROUP LTD,18-Jun-2020,556.00
CSC SENIOR MANAGEMENT,Accommodation,CASH ADVANCE FEE,18-Jun-2020,2.95
CSC SENIOR MANAGEMENT,Domestic Goods-Other,CURRYS ONLINE,18-Jun-2020,-109.99
CSC SENIOR MANAGEMENT,Domestic Goods-Other,AMZNMktplace,18-Jun-2020,59.63
CSC SENIOR MANAGEMENT,Domestic Goods-Other,CURRYS ONLINE,18-Jun-2020,109.99
CSC SENIOR MANAGEMENT,Domestic Goods-Other,AO RETAIL LIMITED,18-Jun-2020,259.00
CSC SENIOR MANAGEMENT,Domestic Goods-Other,WWW.VOUCHEREXPRESS.CO.,18-Jun-2020,30.00
CSC SENIOR MANAGEMENT,Domestic Goods-Other,ARGOS LTD,18-Jun-2020,413.92
CSC SENIOR MANAGEMENT,Furniture-Domestic Furniture,IKEA LTD SHOP ONLINE,18-Jun-2020,288.00
CSC SENIOR MANAGEMENT,Furniture-Domestic Furniture,PAYPAL,18-Jun-2020,544.99
CSC SENIOR MANAGEMENT,Healthcare Services,AOCPP,18-Jun-2020,164.00
CSC SENIOR MANAGEMENT,IT Software,POWTOON.COM,18-Jun-2020,346.70
CSC SENIOR MANAGEMENT,Travel/Subsistence,OYSTER AUTO TOPUP,18-Jun-2020,20.00
CSC SENIOR MANAGEMENT,Travel/Subsistence,OYSTER BUS AUTOLOAD,18-Jun-2020,20.00
DEMOCRATIC SERVICES,Consultancy-Business,EB *SEMINAR REVIEWING,18-Jun-2020,-299.94
DEMOCRATIC SERVICES,Facilities-Design & Photography,CONTRADO-BAGS OF LOVE,18-Jun-2020,508.95
DEMOCRATIC SERVICES,Facilities-Printing,WWW.SOLOPRESS.COM,18-Jun-2020,25.85
HOUSING MANAGEMENT SERVICES,Domestic Goods-Other,AMZNMktplace,18-Jun-2020,38.98
MH SERVICES,Legal Services-Other,HMCOURTS-SERVICE.G,18-Jun-2020,150.00
PARKS & LEISURE SERVICES,Building-General,HTTP://WWW.MULTIPOINTL,18-Jun-2020,315.90
PARKS & LEISURE SERVICES,Domestic Goods-Other,SAFETYSUPPL,18-Jun-2020,42.48
SCHOOL & EDUCATIONAL IMPROVEMENT SERVICE,Accommodation,GOOGLE  ADS3485321156,18-Jun-2020,324.87
SCHOOL & EDUCATIONAL IMPROVEMENT SERVICE,Facilities-Market Research,ZOOM.GBP,18-Jun-2020,143.88
SERVICE TRANSFORMATION - GF,Domestic Goods-Other,AMAZON.CO.UK,18-Jun-2020,50.00
SHELTERED HOUSING,Domestic Goods-Other,AMZNMktplace,18-Jun-2020,51.80
CSC SENIOR MANAGEMENT,Domestic Goods-Other,ARGOS LTD,19-Jun-2020,181.95
CSC SENIOR MANAGEMENT,Domestic Goods-Other,WWW.VOUCHEREXPRESS.CO.,19-Jun-2020,80.00
CSC SENIOR MANAGEMENT,Facilities-Storage,WWW.SAFESTORE.CO.UK,19-Jun-2020,151.42
CSC SENIOR MANAGEMENT,Financial Services,BT PHONE / ATM KIOSK,19-Jun-2020,75.99
CSC SENIOR MANAGEMENT,Travel/Subsistence,OYSTER BUS AUTOLOAD,19-Jun-2020,20.00
CSC SENIOR MANAGEMENT,Travel/Subsistence,OYSTER BUS AUTOLOAD,19-Jun-2020,20.00
CSC SENIOR MANAGEMENT,Travel/Subsistence,OYSTER AUTO TOPUP,19-Jun-2020,20.00
DEMOCRATIC SERVICES,Arts & Leisure Services,PAYPAL,19-Jun-2020,805.22
DEMOCRATIC SERVICES,Domestic Goods-Other,WWW.ALBERT-HARRISON.CO,19-Jun-2020,484.36
DEMOCRATIC SERVICES,Travel/Subsistence,TFL BUSINESS BOPS WEB,19-Jun-2020,14.00
EVENTS & FILMING,Stationery,PAYPAL,19-Jun-2020,43.60
HOUSING MANAGEMENT SERVICES,Travel/Subsistence,LUL TICKET MACHINE,19-Jun-2020,100.00
MH SERVICES,Consultancy-Business,POSTURITE LTD,19-Jun-2020,67.14
PARKS & LEISURE SERVICES,Building-Timber,TP NORWOOD 9014,19-Jun-2020,124.20
RESIDENT ENGAGEMENT,Domestic Goods-Other,ARGOS LTD,19-Jun-2020,389.98
RESIDENT ENGAGEMENT,Furniture-Domestic Furniture,WWW.STAC.CO.UK,19-Jun-2020,493.80
SERVICE TRANSFORMATION - GF,Domestic Goods-Other,AMAZON.CO.UK,19-Jun-2020,40.00
SPECIALIST YOUTH,Travel/Subsistence,OYSTER AUTO TOPUP,19-Jun-2020,20.00
CAMPAIGNS & COMMUNICATIONS,IT Software,ADOBE CREATIVE CLOUD,20-Jun-2020,212.40
EMERGENCY PLANNING,Catering Food & Drink,TESCO STORE 2143,21-Jun-2020,57.32
HOUSING MANAGEMENT SERVICES,Domestic Goods-Other,AMZNMktplace,21-Jun-2020,192.64
CSC SENIOR MANAGEMENT,Accommodation,CASH ADVANCE FEE,22-Jun-2020,2.95
CSC SENIOR MANAGEMENT,Domestic Goods-Other,ARGOS LTD,22-Jun-2020,149.99
CSC SENIOR MANAGEMENT,Financial Services,GEN REGISTER OFFICE,22-Jun-2020,38.00
CSC SENIOR MANAGEMENT,Travel/Subsistence,OYSTER BUS AUTOLOAD,22-Jun-2020,20.00
CSC SENIOR MANAGEMENT,Travel/Subsistence,LNER WEB SALES,22-Jun-2020,86.50
CSC SENIOR MANAGEMENT,Travel/Subsistence,OYSTER BUS AUTOLOAD,22-Jun-2020,20.00
CSC SENIOR MANAGEMENT,Travel/Subsistence,OYSTER ONLINE,22-Jun-2020,30.00
DEMOCRATIC SERVICES,Facilities-Printing,SOLOPRESS.COM V/TERMINAL,22-Jun-2020,55.44
EMERGENCY PLANNING,Catering Food & Drink,TESCO STORE 2143,22-Jun-2020,68.99
FACILITIES MANAGEMENT,Telecommunications,BT BILL PAYMENT 2,22-Jun-2020,415.40
FINANCIAL PLANNING AND MANAGEMENT,Domestic Goods-Other,ARGOS LTD,22-Jun-2020,670.53
HOUSING MANAGEMENT SERVICES,Financial Services,LAMBETH INTERNET PAYM,22-Jun-2020,11.00
MH SERVICES,Legal Services-Other,HMCOURTS-SERVICE.G,22-Jun-2020,150.00
RESIDENT ENGAGEMENT,Furniture-Domestic Furniture,WWW.STAC.CO.UK,22-Jun-2020,439.80
CSC SENIOR MANAGEMENT,Domestic Goods-Other,ARGOS LTD,23-Jun-2020,248.62
CSC SENIOR MANAGEMENT,Domestic Goods-Other,ARGOS LTD,23-Jun-2020,-131.05
CSC SENIOR MANAGEMENT,Domestic Goods-Other,CURRYS ONLINE,23-Jun-2020,383.99
CSC SENIOR MANAGEMENT,Domestic Goods-Other,ARGOS LTD,23-Jun-2020,559.91
CSC SENIOR MANAGEMENT,Domestic Goods-Other,CURRYS ONLINE,23-Jun-2020,559.96
CSC SENIOR MANAGEMENT,Domestic Goods-Other,AMZNMktplace,23-Jun-2020,12.99
CSC SENIOR MANAGEMENT,Domestic Goods-Other,ARGOS LTD,23-Jun-2020,460.14
CSC SENIOR MANAGEMENT,Furniture-Domestic Furniture,WF* WAYFAIR 3081810214,23-Jun-2020,934.88
CSC SENIOR MANAGEMENT,Furniture-Domestic Furniture,WWW.DIVAN-BEDS.CO.UK,23-Jun-2020,395.00
CSC SENIOR MANAGEMENT,Travel/Subsistence,OYSTER BUS AUTOLOAD,23-Jun-2020,20.00
DEMOCRATIC SERVICES,Domestic Goods-Other,AMZNMktplace,23-Jun-2020,23.98
DEMOCRATIC SERVICES,Travel/Subsistence,TFL BUSINESS BOPS WEB,23-Jun-2020,15.00
EMERGENCY PLANNING,Catering Food & Drink,POUND PLUS,23-Jun-2020,7.50
HOUSING MANAGEMENT SERVICES,IT Software-Customised,INTELLISOFTWARE LTD,23-Jun-2020,52.80
OT SERVICES,Consultancy-Business,SECURITYSAFETYPRODUCTS,23-Jun-2020,107.70
PARKS & LEISURE SERVICES,Horticultural-Other,WWW.EVEREDGE.CO.UK,23-Jun-2020,495.60
PARKS & LEISURE SERVICES,Vehicle Parts,STOCKWELL MOTOR ACCES,23-Jun-2020,68.59
ASC SENIOR MANAGEMENT,Domestic Goods-Other,ARGOS LTD,24-Jun-2020,455.14
CSC SENIOR MANAGEMENT,Accommodation,HTTPS YOUGOTAGIFT COM,24-Jun-2020,46.21
CSC SENIOR MANAGEMENT,Accommodation,HTTPS YOUGOTAGIFT COM,24-Jun-2020,101.36
CSC SENIOR MANAGEMENT,Building-Floors,CARPETS FOR LESS (HARL,24-Jun-2020,547.00
CSC SENIOR MANAGEMENT,Domestic Goods-Other,AMZNMktplace,24-Jun-2020,94.48
CSC SENIOR MANAGEMENT,Domestic Goods-Other,CURRYS ONLINE,24-Jun-2020,330.00
CSC SENIOR MANAGEMENT,Domestic Goods-Other,AMZNMktplace,24-Jun-2020,54.99
CSC SENIOR MANAGEMENT,Domestic Goods-Other,ARGOS LTD,24-Jun-2020,229.99
CSC SENIOR MANAGEMENT,Financial Services,ROYAL BANK UK /,24-Jun-2020,150.00
CSC SENIOR MANAGEMENT,Travel/Subsistence,OYSTER AUTO TOPUP,24-Jun-2020,20.00
CSC SENIOR MANAGEMENT,Travel/Subsistence,OYSTER ONLINE,24-Jun-2020,20.00
CSC SENIOR MANAGEMENT,Travel/Subsistence,OYSTER AUTO TOPUP,24-Jun-2020,40.00
DEMOCRATIC SERVICES,Banquet & Catering,BFS GROUP,24-Jun-2020,"1,696.59"
DEMOCRATIC SERVICES,Domestic Goods-Other,AMZNMktplace,24-Jun-2020,38.30
DEMOCRATIC SERVICES,Facilities-Market Research,WWW.NISBETS.COM,24-Jun-2020,46.80
DEMOCRATIC SERVICES,IT Software-Customised,WWW.CATERKWIK.CO.UK,24-Jun-2020,779.99
DEMOCRATIC SERVICES,Travel/Subsistence,TFL BUSINESS BOPS WEB,24-Jun-2020,15.00
EARLY HELP,Taxi Fares,UBER TRIP HELP.UBER.COM,24-Jun-2020,22.97
HOUSING MANAGEMENT SERVICES,Financial Services,LAMBETH INTERNET PAYM,24-Jun-2020,11.00
MH SERVICES,Legal Services-Other,HMCOURTS-SERVICE.G,24-Jun-2020,150.00
SCHOOL & EDUCATIONAL IMPROVEMENT SERVICE,Domestic Goods-Other,AMZNMktplace,24-Jun-2020,53.46
CSC SENIOR MANAGEMENT,Accommodation,CASH ADVANCE FEE,25-Jun-2020,5.90
CSC SENIOR MANAGEMENT,Domestic Goods-Other,ARGOS LTD,25-Jun-2020,247.89
CSC SENIOR MANAGEMENT,Domestic Goods-Other,CURRYS T/SALES,25-Jun-2020,194.99
CSC SENIOR MANAGEMENT,Furniture-Domestic Furniture,IKEA LTD SHOP ONLINE,25-Jun-2020,-288.00
CSC SENIOR MANAGEMENT,Travel/Subsistence,OYSTER BUS AUTOLOAD,25-Jun-2020,40.00
CSC SENIOR MANAGEMENT,Travel/Subsistence,OYSTER BUS AUTOLOAD,25-Jun-2020,20.00
CSC SENIOR MANAGEMENT,Travel/Subsistence,OYSTER AUTO TOPUP,25-Jun-2020,20.00
CSC SENIOR MANAGEMENT,Travel/Subsistence,OYSTER BUS AUTOLOAD,25-Jun-2020,20.00
DEMOCRATIC SERVICES,Travel/Subsistence,TFL BUSINESS BOPS WEB,25-Jun-2020,15.00
PARKS & LEISURE SERVICES,Building-Paint,LEYLAND SDM,25-Jun-2020,48.23
PARKS & LEISURE SERVICES,Building-Timber,SELCO TRADING CTR,25-Jun-2020,73.77
PARKS & LEISURE SERVICES,IT Hardware,Selco Trade Centres Ltd,25-Jun-2020,149.06
PUBLIC HEALTH - ADULTS,Domestic Goods-Other,AMZNMktplace,25-Jun-2020,56.99
CSC SENIOR MANAGEMENT,Accommodation,HTTPS YOUGOTAGIFT COM,26-Jun-2020,238.94
CSC SENIOR MANAGEMENT,Accommodation,HTTPS YOUGOTAGIFT COM,26-Jun-2020,58.37
CSC SENIOR MANAGEMENT,Consultancy-Other,THE HUB EVENTS LTD,26-Jun-2020,336.00
CSC SENIOR MANAGEMENT,Domestic Goods-Other,ARGOS LTD,26-Jun-2020,256.94
CSC SENIOR MANAGEMENT,Domestic Goods-Other,WWW.VOUCHEREXPRESS.CO.,26-Jun-2020,50.00
CSC SENIOR MANAGEMENT,Domestic Goods-Other,CURRYS ONLINE,26-Jun-2020,"1,556.98"
CSC SENIOR MANAGEMENT,Domestic Goods-Other,AMZNMktplace,26-Jun-2020,65.42
CSC SENIOR MANAGEMENT,Domestic Goods-Other,WWW.VOUCHEREXPRESS.CO.,26-Jun-2020,50.00
CSC SENIOR MANAGEMENT,Financial Services,Sainsburys Bank CASH,26-Jun-2020,190.00
CSC SENIOR MANAGEMENT,Financial Services,LAMBETH INTERNET PAYM,26-Jun-2020,18.00
CSC SENIOR MANAGEMENT,Haulage,HAPPY 2 MOVE LIMIT,26-Jun-2020,216.00
CSC SENIOR MANAGEMENT,Travel/Subsistence,OYSTER AUTO TOPUP,26-Jun-2020,20.00
CSC SENIOR MANAGEMENT,Travel/Subsistence,OYSTER BUS AUTOLOAD,26-Jun-2020,20.00
CSC SENIOR MANAGEMENT,Travel/Subsistence,OYSTER BUS AUTOLOAD,26-Jun-2020,20.00
CSC SENIOR MANAGEMENT,Travel/Subsistence,OYSTER BUS AUTOLOAD,26-Jun-2020,20.00
CSC SENIOR MANAGEMENT,Travel/Subsistence,OYSTER BUS AUTOLOAD,26-Jun-2020,20.00
DEMOCRATIC SERVICES,Domestic Goods-Other,WWW.ALBERT-HARRISON.CO,26-Jun-2020,753.84
PARKS & LEISURE SERVICES,Building-Others,JOHNSTON SWEEPERS,26-Jun-2020,15.71
PARKS & LEISURE SERVICES,Building-Paint,LEYLAND SDM,26-Jun-2020,64.45
CSC SENIOR MANAGEMENT,Domestic Goods-Other,ARGOS LTD,27-Jun-2020,208.73
CSC SENIOR MANAGEMENT,Facilities-Market Research,Amazon Prime,27-Jun-2020,7.99
DEMOCRATIC SERVICES,Travel/Subsistence,TFL BUSINESS BOPS WEB,27-Jun-2020,15.00
EMERGENCY PLANNING,Catering Food & Drink,TESCO STORE 2143,27-Jun-2020,63.43
EVENTS & FILMING,Facilities-Advertising,FACEBK *B3ZBDUEJK2,27-Jun-2020,40.00
LIBRARIES & ARCHIVES,Facilities-Market Research,ZOOM.GBP,27-Jun-2020,48.00
SPECIALIST YOUTH,Travel/Subsistence,OYSTER AUTO TOPUP,27-Jun-2020,20.00
SPECIALIST YOUTH,Travel/Subsistence,OYSTER AUTO TOPUP,27-Jun-2020,20.00
CSC SENIOR MANAGEMENT,Travel/Subsistence,OYSTER BUS AUTOLOAD,28-Jun-2020,40.00
CSC SENIOR MANAGEMENT,Travel/Subsistence,OYSTER BUS AUTOLOAD,28-Jun-2020,20.00
DEMOCRATIC SERVICES,Professional & Advisory Services,PAYPAL,28-Jun-2020,400.00
EMERGENCY PLANNING,Catering Food & Drink,TESCO STORE 2143,28-Jun-2020,51.48
EVENTS & FILMING,Consultancy-Business,BLS*MONDAY.COM,28-Jun-2020,223.20
EVENTS & FILMING,Professional & Advisory Services,ALLSEATED SUBSCRIPTION,28-Jun-2020,74.42
OP SERVICES,Catering Food & Drink,TESCO-STORES 6567,28-Jun-2020,27.36
SPECIALIST YOUTH,Travel/Subsistence,OYSTER AUTO TOPUP,28-Jun-2020,20.00
SPECIALIST YOUTH,Travel/Subsistence,OYSTER AUTO TOPUP,28-Jun-2020,20.00
CAMPAIGNS & COMMUNICATIONS,Facilities-Advertising,FACEBK 2WMNCU66M2,29-Jun-2020,60.00
CSC SENIOR MANAGEMENT,Accommodation,CASH ADVANCE FEE,29-Jun-2020,7.38
CSC SENIOR MANAGEMENT,Domestic Goods-Other,AMZNMktplace,29-Jun-2020,38.78
CSC SENIOR MANAGEMENT,Domestic Goods-Other,ARGOS LTD,29-Jun-2020,53.94
CSC SENIOR MANAGEMENT,Financial Services,LOYD - 18 ACRE LANE,29-Jun-2020,250.00
CSC SENIOR MANAGEMENT,Financial Services,BT PHONE / ATM KIOSK,29-Jun-2020,15.99
DEMOCRATIC SERVICES,Domestic Goods-Other,AMZNMktplace,29-Jun-2020,192.34
EVENTS & FILMING,Facilities-Advertising,FACEBK *DW9S4UJJK2,29-Jun-2020,40.00
FINANCIAL PLANNING AND MANAGEMENT,Domestic Goods-Other,ARGOS LTD,29-Jun-2020,-109.00
HOUSING MANAGEMENT SERVICES,Facilities-Printing,Amazon.co.uk,29-Jun-2020,45.00
MH SERVICES,Legal Services-Other,HMCOURTS-SERVICE.G,29-Jun-2020,150.00
PARKS & LEISURE SERVICES,Building-General,SCREWFIX DIRECT,29-Jun-2020,39.92
PARKS & LEISURE SERVICES,Building-Roofing,TARA FABRICATIONS,29-Jun-2020,216.00
SERVICE TRANSFORMATION - GF,Education-Musical Instruments,Prime Video*NJ2I22BF5,29-Jun-2020,6.99
CSC SENIOR MANAGEMENT,Accommodation,CASH ADVANCE FEE,30-Jun-2020,12.10
